Cogmind - Beta 9.1 *** ADVENTURER MODE // 2019.11.10 @ 01:22:15 Player: Suslik Result: Destroyed by P-80 Master with Gamma Rifle Performance ------------- Evolutions (7) 3500 Regions Visited (32) 6400 Robots Destroyed (579) 2895 Value Destroyed (31010) 31010 Prototype IDs (70) 1400 Alien Tech Used (4) 800 Bonus (22865) 22865 TOTAL SCORE: 68870 Bonus ------- High Alert Combat Kills 6490 Follower Combat Kills 3394 Entered Garrisons 400 Used RIF Installer 1000 Network Hubs Disabled 800 Met Data Miner 300 Built Enhanced Grunts 300 Met R17 at Cetus 500 Found Hidden Lab 3000 Used Core Reset Matrix 3000 Met R17 at Research 2000 Pursued by Intercept 1000 Met Sigix 2000 Friendly Fire -1319 Cogmind --------- Core Integrity 0/1300 Matter 175/300 Energy 100/100 System Corruption 28% Temperature Cool (0) Location -3/Quarantine Parts ------- Power (2) Propulsion (4) Utility (13) High-capacity Storage Unit High-capacity Storage Unit High-capacity Storage Unit High-capacity Storage Unit High-capacity Storage Unit Experimental Signal Interpreter Advanced Armor Integrity Analyzer Weapon (2) Inventory (44) Improved Heavy Siege Treads Improved Fusion Compressor Advanced Coolant Injector Advanced Coolant Injector High-capacity Storage Unit Experimental Energy Well (1000) Matter Compressor (250) Experimental Sensor Array Precision Energy Filter Improved Particle Charger Experimental Phase Shifter Centrium Medium Armor Plating Centrium Medium Armor Plating Relay Coupler [NC] (32) Relay Coupler [NC] (30) Advanced Field Recycling Unit (0) Transdimensional Reconstructor Subatomic Replicator HERF Cannon HERF Cannon EMDS EMDS EMDS Ion Burst Cannon Warp Cannon Linked Autogun Linked Autogun Tri-rail Accelerator Advanced EMP Blaster Guided Remote Datajack Peak State ------------ Power Cooled Fission Core Heavy Antimatter Reactor Propulsion Enhanced Armored Medium Treads Enhanced Armored Medium Treads Enhanced Armored Medium Treads Enhanced Armored Medium Treads Utility High-capacity Storage Unit High-capacity Storage Unit High-capacity Storage Unit High-capacity Storage Unit High-capacity Storage Unit Experimental Sensor Array Experimental Signal Interpreter Advanced Armor Integrity Analyzer Centrium Medium Armor Plating Centrium Medium Armor Plating AEGIS Remote Shield Experimental Hacking Suite Deep Network Scanner Weapon EMDS Inventory Antimatter Reactor Centrium Heavy Treads Centrium Heavy Treads Biometal Heavy Treads Biometal Heavy Treads Improved Fusion Compressor Advanced Coolant Injector Advanced Coolant Injector High-capacity Storage Unit Compact Battery Matter Compressor Precision Energy Filter Improved Particle Charger Experimental Phase Shifter Centrium Medium Armor Plating Relay Coupler [NC] Relay Coupler [NC] Relay Coupler [NC] Relay Coupler [NC] Transdimensional Reconstructor Integrated Reactor Core Reset Matrix HERF Cannon HERF Cannon HERF Cannon EMDS EMDS Ion Burst Cannon Warp Cannon Tri-rail Accelerator Advanced EMP Blaster Advanced EMP Blaster Fusion Bomb Launcher Guided Remote Datajack Kinetic Spear [Rating: 168] Favorites ----------- Power Antimatter Reactor Engine Ion Engine Power Core Cooled Fission Core Reactor Antimatter Reactor Propulsion Centrium Heavy Treads Treads Centrium Heavy Treads Leg Aluminum Leg Wheel Compact Wheel Flight Unit Improved Cesium-ion Thruster Utility High-capacity Storage Unit Device Long-range Sensor Array Storage High-capacity Storage Unit Processor Improved Signal Interpreter Hackware Relay Coupler [NC] Protection Centrium Medium Armor Plating Artifact Phase Redirector Weapon Improved EM Pulse Cannon Energy Gun Medium Laser Energy Cannon Improved EM Pulse Cannon Ballistic Gun Improved Assault Rifle Ballistic Cannon Assault Cannon Launcher Mini Grenade Launcher Special Weapon Remote Datajack Impact Weapon Shock Maul Slashing Weapon Axe Piercing Weapon Kinetic Spear Special Melee Weapon Improved Datajack Build | -11 -10 -10 -10 -9 -8 -8 -8 -8 -7 -7 -7 -7 -7 -7 -6 -6 -6 -6 -6 -5 -5 -5 -5 -5 -5 -4 -4 -4 -4 -4 -3 -3 ------- Run | Scr Mat Min Exi Min Mat Gar Mat Gar Fac Was Fac Low Low Zio Pro Fac Low Low Dat Pro Fac Ext Cet Arc Hub Fac Was Fac Arm Lab Res Qua Slots Evolved 14 | . . . . . 4 . . . 2 . . . . . . 2 . . . . 2 . . . . 2 . . . . 2 . Power 1 | . . . . . . . . . . . . . . . . . . . . . . . . . . 1 . . . . . . Propulsion 2 | . . . . . 1 . . . . . . . . . . 1 . . . . . . . . . . . . . . . . Utility 11 | . . . . . 3 . . . 2 . . . . . . 1 . . . . 2 . . . . 1 . . . . 2 . Weapon . | . . . . . . . . . . . . . . . . . . . . . . . . . . . . . . . . . Parts Attached 749 | . 12 3 1 . 17 16 7 21 55 9 29 15 13 . 7 14 2 13 . 2 59 24 12 1 79 20 8 143 98 13 11 45 Power 24 | . 1 . . . 3 1 . . 1 1 1 . . . . 1 . . . . 1 . 1 . 1 2 1 4 4 . . 1 Engine 4 | . 1 . . . 2 1 . . . . . . . . . . . . . . . . . . . . . . . . . . Core 3 | . . . . . 1 . . . 1 . . . . . . . . . . . . . . . . . . . 1 . . . Reactor 17 | . . . . . . . . . . 1 1 . . . . 1 . . . . 1 . 1 . 1 2 1 4 3 . . 1 Propulsion 61 | . 4 2 . . 4 6 3 1 7 1 . . 1 . 1 2 . . . . 2 . 2 . . . 1 6 6 3 . 9 Treads 56 | . 2 2 . . 3 6 3 1 5 1 . . 1 . 1 2 . . . . 2 . 2 . . . 1 6 6 3 . 9 Leg 2 | . 2 . . . . . . . . . . . . . . . . . . . . . . . . . . . . . . . Wheel 2 | . . . . . 1 . . . 1 . . . . . . . . . . . . . . . . . . . . . . . Hover . | . . . . . . . . . . . . . . . . . . . . . . . . . . . . . . . . . Flight 1 | . . . . . . . . . 1 . . . . . . . . . . . . . . . . . . . . . . . Utility 238 | . 2 . . . 6 2 3 5 19 3 7 8 1 . 3 2 . 3 . . 22 1 2 . 19 9 3 56 43 4 4 11 Device 110 | . . . . . 1 . 1 . 7 . 4 6 . . 2 1 . 2 . . 10 1 . . 10 3 . 28 26 1 2 5 Storage 26 | . 2 . . . 1 1 . . 2 1 1 1 1 . 1 . . . . . 4 . . . 2 2 . 7 . . . . Processor 8 | . . . . . . . . . 1 . 1 . . . . . . . . . . . . . 1 . . 2 3 . . . Hackware 23 | . . . . . . . . 4 3 1 1 1 . . . . . . . . 2 . . . 3 1 1 1 3 1 . 1 Protection 70 | . . . . . 4 1 2 1 6 1 . . . . . 1 . 1 . . 6 . 2 . 3 3 2 18 11 2 2 4 Artifact 1 | . . . . . . . . . . . . . . . . . . . . . . . . . . . . . . . . 1 Weapon 426 | . 5 1 1 . 4 7 1 15 28 4 21 7 11 . 3 9 2 10 . 2 34 23 7 1 59 9 3 77 45 6 7 24 Energy Gun 14 | . 4 1 1 . . . . . . . . . . . . . . . . . . . 1 . 4 . . 1 1 1 . . Energy Cannon 175 | . . . . . . 3 . . 7 1 8 2 6 . 2 3 . 6 . 1 15 13 4 1 22 3 1 37 20 3 5 12 Ballistic Gun 6 | . . . . . 2 . . 1 . . . . . . . . . . . . . . 1 . 1 . . . . . . 1 Ballistic Cannon 25 | . . . . . 1 1 . 1 9 . 2 . . . . . . 1 . . . 4 . . . . . 1 5 . . . Launcher 38 | . . . . . . 3 . 4 . . 3 1 . . . . 1 1 . . 3 1 1 . 11 2 . 3 2 . . 2 Special Weapon 42 | . . . . . . . . . 1 1 2 1 3 . . . . . . . 3 5 . . 4 1 1 11 5 1 . 3 Impact Weapon 1 | . . . . . . . . . . . . . . . . . . . . . . . . . . . . . 1 . . . Slashing Weapon 65 | . . . . . 1 . 1 4 4 . 5 3 2 . 1 . 1 2 . 1 6 . . . 5 . . 11 10 1 2 5 Piercing Weapon 49 | . . . . . . . . 1 1 2 1 . . . . 6 . . . . 7 . . . 12 3 1 13 1 . . 1 Special Melee Weapon 11 | . 1 . . . . . . 4 6 . . . . . . . . . . . . . . . . . . . . . . . Unidentified Prototypes 42 | . . . . . 1 . . . 1 . . . . . . . . . . . 4 1 4 . 4 1 . 2 16 6 . 2 Parts Lost 59 | . 6 1 . . 2 . . . 5 1 . . . . 2 . . . . . 2 1 . 1 3 5 . 7 6 . . 17 Power 10 | . 1 . . . . . . . 1 . . . . . . . . . . . 1 . . . 1 2 . . 1 . . 3 Propulsion 11 | . 1 . . . 1 . . . 2 1 . . . . . . . . . . . . . . . . . 1 . . . 5 Utility 21 | . . . . . 1 . . . 1 . . . . . . . . . . . 1 . . . 1 2 . 4 5 . . 6 Weapon 17 | . 4 1 . . . . . . 1 . . . . . 2 . . . . . . 1 . 1 1 1 . 2 . . . 3 Highest Loss Streak 10 | . 3 1 . . 2 . . . 3 1 . . . . 2 . . . . . 1 1 . 1 1 2 . 1 2 . . 10 Average Slot Usage (%) 86 | . 96 100 100 100 97 100 100 100 98 79 88 92 92 92 92 85 86 86 86 86 75 76 76 76 75 74 74 80 83 96 98 89 Engine 2 | . 14 14 14 14 2 9 9 9 2 . . . . . . . . . . . . . . . . . . . . . . . Reactor 5 | . . . . . . . . . . 5 7 7 7 7 7 6 6 6 6 6 4 5 5 5 5 7 10 10 9 5 4 3 Treads 15 | . 5 26 28 28 21 27 27 27 22 13 15 15 15 15 15 13 13 13 13 13 11 11 11 11 11 10 10 9 12 19 19 16 Device 4 | . . . . . 4 . 1 . 4 . 5 6 6 . 6 5 6 5 6 6 6 5 5 5 4 8 5 6 7 3 8 5 Storage 29 | . 25 28 28 28 26 32 36 36 31 27 37 38 38 46 39 33 33 33 33 33 29 29 29 29 29 26 26 26 26 26 23 23 Processor 3 | . . . . . . . . . 6 1 3 7 7 7 7 6 6 6 6 6 3 . . . . . . 4 8 10 9 9 Hackware 1 | . . . . . . . . 7 1 3 1 . . . . . . . . . 1 . . . 2 1 5 1 2 8 9 10 Protection 6 | . . . . . 11 12 7 1 6 7 . . . . . 5 6 6 6 6 3 11 11 11 7 10 6 10 8 7 8 5 Energy Gun 2 | . 23 28 28 28 3 . . . . . . . . . . . . . . . . . . . . . . . . . . . Energy Cannon 4 | . . . . . . 7 9 . 6 . 5 6 6 15 14 3 . 9 13 11 3 8 10 11 4 1 . 3 3 3 3 1 Slashing Weapon 2 | . . . . . 2 . 8 5 2 . 2 6 5 . . . 1 3 . 1 3 . . . 1 . . 1 1 4 3 2 Piercing Weapon 1 | . . . . . . . . 2 . 6 2 . . . . 8 6 . . . 2 . . . 2 6 4 2 . . . . Naked Turns . | . . . . . . . . . . . . . . . . . . . . . . . . . . . . . . . . . Heaviest Build 269 | 10 72 72 74 74 115 148 154 154 160 194 194 192 194 193 193 200 190 201 200 205 246 250 248 248 254 265 265 268 247 234 245 269 Greatest Support 160 | 20 40 40 40 40 60 60 60 60 62 92 92 92 92 90 90 140 140 140 140 140 140 140 160 160 160 160 160 160 160 150 140 155 Greatest Overweight (x) 9 | . 3 3 1 1 6 2 2 2 9 9 2 2 2 2 2 1 1 1 1 1 1 1 1 1 1 3 3 1 2 3 1 5 Average Overweight (x) 1 | . 2 1 1 1 3 1 2 2 2 3 1 1 1 2 2 1 1 1 1 1 1 1 1 1 1 1 1 1 1 1 1 1 Largest Inventory Capacity 52 | . 20 20 20 20 28 36 36 36 36 36 44 44 44 44 44 44 44 44 44 44 44 44 44 44 44 44 44 52 44 44 44 44 Average Capacity 39 | . 17 20 20 20 27 32 36 36 36 33 43 44 44 44 44 44 44 44 44 44 44 44 44 44 44 44 44 44 44 44 44 44 Most Carried 44 | . 17 20 20 20 28 36 36 36 36 36 44 44 44 44 44 44 44 44 44 44 44 44 44 44 44 44 44 44 44 44 44 44 Average Carried 38 | . 10 19 19 20 25 31 35 35 35 32 39 43 43 44 43 42 42 43 44 44 42 43 43 43 43 41 42 42 41 43 43 42 Final Capacity 44 | 6 20 20 20 20 28 36 36 36 36 36 44 44 44 44 44 44 44 44 44 44 44 44 44 44 44 44 44 44 44 44 44 44 Final Carried 44 | 6 17 20 20 20 28 36 36 36 33 36 44 44 44 44 42 42 44 44 44 44 42 44 44 43 44 37 43 44 42 44 44 37 Class Distribution -------------------- 89% | Hauler-Mutant 9% | Bothacker-Mutant Dominant Class ---------------- Hauler-Mutant | -10/Materials Hauler-Mutant | -10/Mines Hauler-Mutant | -10/Exiles Hauler-Mutant | -9/Mines Hauler-Mutant | -8/Materials Hauler-Mutant | -8/Garrison Bothacker-Mutant | -8/Materials Bothacker-Mutant | -8/Garrison Bothacker-Mutant | -7/Factory Hauler-Mutant | -7/Waste Hauler-Mutant | -7/Factory Hauler-Mutant | -7/Lower Caves Hauler-Mutant | -7/Lower Caves Hauler-Mutant | -7/Zion Hauler-Mutant | -6/Proximity Caves Hauler-Mutant | -6/Factory Hauler-Mutant | -6/Lower Caves Hauler-Mutant | -6/Lower Caves Hauler-Mutant | -6/Data Miner Hauler-Mutant | -5/Proximity Caves Hauler-Mutant | -5/Factory Hauler-Mutant | -5/Extension Hauler-Mutant | -5/Cetus Hauler-Mutant | -5/Archives Hauler-Mutant | -5/Hub_04(d) Hauler-Mutant | -4/Factory Hauler-Mutant | -4/Waste Hauler-Mutant | -4/Factory Hauler-Mutant | -4/Armory Hauler-Mutant | -4/Lab Hauler-Mutant | -3/Research Hauler-Mutant | -3/Quarantine Resources | -11 -10 -10 -10 -9 -8 -8 -8 -8 -7 -7 -7 -7 -7 -7 -6 -6 -6 -6 -6 -5 -5 -5 -5 -5 -5 -4 -4 -4 -4 -4 -3 -3 ----------- Run | Scr Mat Min Exi Min Mat Gar Mat Gar Fac Was Fac Low Low Zio Pro Fac Low Low Dat Pro Fac Ext Cet Arc Hub Fac Was Fac Arm Lab Res Qua Matter Collected 16396 | 200 344 20 . 7 280 408 70 314 420 487 268 219 271 10 55 150 143 187 . . 3020 721 175 10 1076 335 218 3017 2542 250 392 787 Remotely . | . . . . . . . . . . . . . . . . . . . . . . . . . . . . . . . . . Salvage Created 32716 | . 788 91 . . 379 368 136 353 738 1826 711 156 564 . 354 420 190 478 . 142 2423 684 867 191 5743 1909 884 6588 3582 . 39 2112 Parts 1305 | . 40 . . . 19 27 11 13 37 30 39 6 19 . 13 32 15 14 . 4 136 18 28 7 232 73 16 251 137 . 1 87 Haulers Intercepted 6 | . . . . . . . . . . . . . . . . . . . . . 3 . . . 2 . . 1 . . . . Recyclers Shooed 10 | . . 1 . . . . . . 1 . . . . . . . . . . . 3 . . . 1 . . 4 . . . . Parts Field Recycled . | . . . . . . . . . . . . . . . . . . . . . . . . . . . . . . . . . Retrieved Matter . | . . . . . . . . . . . . . . . . . . . . . . . . . . . . . . . . . Parts Self-Destructed 57 | . . . . . . . . . . . . 2 32 . 4 . 7 4 . 8 . . . . . . . . . . . . Prevented 32 | . . . . . . . . . . . . 3 9 . 9 . . 7 . 4 . . . . . . . . . . . . Kills | -11 -10 -10 -10 -9 -8 -8 -8 -8 -7 -7 -7 -7 -7 -7 -6 -6 -6 -6 -6 -5 -5 -5 -5 -5 -5 -4 -4 -4 -4 -4 -3 -3 ------- Run | Scr Mat Min Exi Min Mat Gar Mat Gar Fac Was Fac Low Low Zio Pro Fac Low Low Dat Pro Fac Ext Cet Arc Hub Fac Was Fac Arm Lab Res Qua Combat Hostiles Destroyed 474 | . 17 3 . . 10 17 2 11 15 7 14 3 11 . 5 7 15 9 . 2 33 9 11 2 74 27 3 89 54 . . 24 Melee 108 | . . . . . 2 . . 3 1 6 1 . . . . 5 2 . . . 12 . . . 26 9 3 24 3 . . 11 Guns 25 | . 17 3 . . 5 . . . . . . . . . . . . . . . . . . . . . . . . . . . Cannons 124 | . . . . . 3 5 1 1 14 . 8 . 6 . 2 2 . 4 . 1 3 5 2 1 7 8 . 28 23 . . . AOE 80 | . . . . . . 11 . 7 . . 4 2 3 . . . 13 3 . . 9 . . . 20 4 . 2 . . . 2 Classes Destroyed 24 | . 5 1 . . 2 1 . . 5 1 . . . . . . 1 1 . . 2 1 . . 3 . . . 1 . . . Worker 30 | . 2 . . . . . 2 . 2 . . . . . . . . . . . 4 . . . 11 2 . 6 . . . 1 Builder 19 | . . . . . . . . . 1 . 1 . . . . . . . . . 4 . . . 2 3 . 6 . . . 2 Tunneler 3 | . . . . . . . . . . . . . . . . . . . . . 1 . . . 2 . . . . . . . Hauler 6 | . . . . . . . . . . . . . . . . . . . . . 3 . . . 2 . . 1 . . . . Recycler 10 | . 1 . . . . . . . 1 . 1 . . . . . . . . . 1 . . . 2 . . 2 . . . 2 Mechanic 1 | . . . . . . . . . . . . . . . . . . . . . . . . . 1 . . . . . . . Operator 4 | . . . . . . . . . 1 . . . . . . . . . . . . 1 . . . . . . 1 . . 1 Watcher 29 | . 3 . . . . . . . 1 . 1 . . . . 2 . . . . 2 1 2 . 3 . . 7 5 . 1 1 Swarmer 68 | . 3 . . . 3 8 . 4 5 . 4 . 4 . . . 8 . . . 8 . . . 3 5 . 9 3 . . 1 Saboteur 4 | . . . . . . . . . . . . . . . . . . . . . . . . . 2 . . . 2 . . . Grunt 179 | . 14 2 . . 4 3 . 7 4 1 8 2 5 . 4 . . 7 . 1 12 4 3 . 32 12 . 30 18 . . 6 Brawler 11 | . . . . . . . . . 1 . . . . . . . . . . 1 1 . . . 4 1 . 3 . . . . Duelist 15 | . . . . . . . . . 2 . . . 3 . . . . . . . . . . . 1 3 . 5 1 . . . Protector 4 | . . . . . . . . . . . . . . . . . . . . . . . . . 4 . . . . . . . Sentry 42 | . . . . . 2 5 1 . . . 1 1 . . 1 2 . . . . 3 3 . 2 6 . . 10 5 . . . Demolisher 3 | . . . . . . . . . . . . . . . . . . . . . . . . . . . . . 3 . . . Specialist 10 | . . . . . . 1 . . . . . . . . . . . . . . . . . . . . . . 6 . . 3 Hunter 35 | . . . . . 1 . 1 . 1 . . . . . . . . . . . 4 . 1 . 3 3 . 13 4 . . 4 Programmer 60 | . . . . . . . . . 2 . 1 . . . . 5 . 1 . . 5 . . . 7 3 . 19 11 . . 6 Behemoth 4 | . . . . . . . . . . . . . . . . . . . . . . 2 . . 1 . . . 1 . . . Compactor 9 | . . . . . . . . . . 6 . . . . . . . . . . . . . . . . 3 . . . . . Cetus Guard 7 | . . . . . . . . . . . . . . . . . . . . . . . 7 . . . . . . . . . Lightning 12 | . . . . . . . . . . . . . . . . . . . . . . . . . 12 . . . . . . . Tracker 2 | . . . . . . . . . . . . . . . . . . . . . . . . . . . . . . . . 2 Combat Programmer 3 | . . . . . . . . . . . . . . . . . . . . . . . . . . . . . . . . 3 Thief 3 | . . . . . . . . . . . . . . . . . 3 . . . . . . . . . . . . . . . Assembled 1 | . . 1 . . . . . . . . . . . . . . . . . . . . . . . . . . . . . . Thug 4 | . . . . . . . . . . . . . . . . . 4 . . . . . . . . . . . . . . . Mutant 1 | . . . . . . . . . . . . . . . . . . 1 . . . . . . . . . . . . . . Best Kill Streak 20 | . 3 3 . . 2 4 2 5 4 2 6 3 4 . 4 1 4 4 . 2 15 2 5 1 20 10 1 15 9 . 1 6 Combat Bots Only 18 | . 3 3 . . 2 4 1 4 4 2 5 3 4 . 4 1 4 4 . 2 10 2 4 1 18 7 1 12 9 . . 6 Max Kills in Single Turn 6 | . 1 1 . . 1 3 1 3 1 1 3 2 2 . 1 1 2 1 . 1 5 1 1 1 6 3 1 2 1 . 1 2 Gunslinging . | . . . . . . . . . . . . . . . . . . . . . . . . . . . . . . . . . Exploded 4 | . . . . . . 3 . 3 . . 3 2 2 . . . 2 1 . . 4 . . . 2 3 . 2 . . . 1 Melee 1 | . . . . . 1 . . 1 1 1 1 . . . . 1 1 . . . 1 . . . 1 1 1 1 1 . . 1 Uniques/NPCs Destroyed . | . . . . . . . . . . . . . . . . . . . . . . . . . . . . . . . . . Combat | -11 -10 -10 -10 -9 -8 -8 -8 -8 -7 -7 -7 -7 -7 -7 -6 -6 -6 -6 -6 -5 -5 -5 -5 -5 -5 -4 -4 -4 -4 -4 -3 -3 -------- Run | Scr Mat Min Exi Min Mat Gar Mat Gar Fac Was Fac Low Low Zio Pro Fac Low Low Dat Pro Fac Ext Cet Arc Hub Fac Was Fac Arm Lab Res Qua Damage Taken 30244 | . 735 115 . . 435 443 182 376 1510 48 473 100 191 . 122 356 230 580 . 26 2184 232 365 60 3382 2523 . 6835 2439 . 93 6209 Core 3090 | . 109 19 . . 16 55 . 50 197 . 85 . . . . 67 32 33 . 12 197 9 13 . 153 43 . 462 224 . 8 1306 Absorbed by Shields 2864 | . . . . . . 31 . . . . . . . . . . . . . . . 87 48 . . . . . . . 88 2610 Reduced by Siege Mode 146 | . . . . . . . . . . . . . . . . . . . . . . . . . . . . 146 . . . . Redirected to Core 144 | . . . . . . . . . . . . . . . . . . . . . . . . . . . . . . . . 144 Core Remaining (%) 70 | 100 . . . 48 . . . 78 . . . . . . 59 . . . . 83 . . . . 62 . . . . 61 . . Volleys Fired 1092 | . 76 9 . . 18 40 8 14 51 11 20 6 35 . 9 8 14 15 . 4 53 73 21 7 125 36 9 212 166 . 4 48 Largest 2 | . 2 2 . . 2 2 1 2 2 1 2 2 2 . 2 2 1 2 . 2 2 2 2 2 2 1 1 2 2 . 2 1 Hottest 240 | . 90 90 . . 113 107 63 67 132 69 138 138 138 . 138 159 30 144 . 179 144 210 144 144 240 100 30 210 210 . 176 100 Shots Fired 1447 | . 125 18 . . 36 53 8 17 93 11 33 9 51 . 18 16 14 25 . 8 76 91 37 14 164 36 9 250 182 . 5 48 Gun 201 | . 125 18 . . 32 11 . 3 . . . . . . . . . . . . . . . . 12 . . . . . . . Cannon 975 | . . . . . 4 27 8 3 92 2 26 6 37 . 18 16 . 21 . 8 64 44 30 14 92 29 . 229 173 . 5 27 Launcher 126 | . . . . . . 15 . 11 . . 3 1 . . . . 14 4 . . 7 . 7 . 46 4 . . . . . 14 Special 145 | . . . . . . . . . 1 9 4 2 14 . . . . . . . 5 47 . . 14 3 9 21 9 . . 7 Kinetic 192 | . 44 . . . 34 24 . 6 41 . . . . . . . . . . . . . . . 1 . . 19 23 . . . Thermal 267 | . 81 18 . . 2 . . . 2 . . . . . . 5 . 1 . 1 10 14 . . 34 6 . 70 19 . 2 2 Explosive 52 | . . . . . . 15 . 11 . . 3 1 . . . . 14 4 . . . . . . . . . . . . . 4 Electromagnetic 791 | . . . . . . 14 8 . 49 2 26 6 37 . 18 11 . 20 . 7 61 30 37 14 115 27 . 140 131 . 3 35 Robot Hit Streak 63 | . 20 10 . . 17 30 9 4 26 34 16 25 63 . 16 9 12 17 . 14 26 25 18 25 27 11 10 42 20 . 14 18 Robot Miss Streak 3 | . 2 2 . . 2 1 1 1 2 1 1 . 1 . 1 1 . 1 . . 3 1 1 1 2 3 . 3 3 . . 1 Penetration Max 1 | . . . . . . . . . . . . . . . . . . . . . . . . . . 1 . 1 1 . . 1 Secondary Targets 1 | . . 1 . . . . . . . . . . . . . . . . . . . . . . . . . . . . . . Max Gunslinging Chain 1 | . . 1 . . . . . . . . . . . . . . . . . . . . . . . . . . . . . . Shots Hit Robots 1643 | . 94 13 . . 42 34 11 18 94 54 24 9 46 . 16 33 16 21 . 6 100 81 25 13 275 55 30 295 151 . 3 84 Core Hits 826 | . 42 10 . 1 13 23 3 17 27 14 21 4 15 . 6 15 32 13 . 2 66 13 25 4 181 47 7 131 55 . 2 37 Critical Hits 82 | . . . . . 2 . . . 2 3 . . . . . . . . . . 2 . . . 7 5 1 26 22 . 2 10 Critical Kills 38 | . . . . . 1 . . . . 1 . . . . . . . . . . 2 . . . 6 3 . 12 8 . 1 4 Critical Parts Destroyed 34 | . . . . . 1 . . . 2 . . . . . . . . . . . . . . . 1 2 . 13 10 . . 5 Melee Attacks 1062 | . . . . . 18 . 19 23 34 44 27 21 40 . 3 92 23 7 . 5 121 . . . 159 48 21 186 52 9 18 92 Impact . | . . . . . . . . . . . . . . . . . . . . . . . . . . . . . . . . . Slashing 468 | . . . . . 18 . 19 13 21 . 8 21 40 . 3 9 8 7 . 5 46 . . . 22 . . 60 51 9 18 90 Piercing 575 | . . . . . . . . 2 2 44 19 . . . . 83 15 . . . 75 . . . 137 48 21 126 1 . . 2 Sneak Attacks 95 | . . . . . . . 4 1 1 44 . . . . . 1 . . . . 11 . . . 2 1 21 2 1 . . 6 Combat Hostiles 70 | . . . . . . . . 1 . 44 . . . . . 1 . . . . . . . . . 1 21 . 1 . . 1 Follow-up Attacks 31 | . . . . . . . . . . . . . . . . 2 . . . . 1 . . . 22 1 . 4 . . . 1 Damage Inflicted 69332 | . 983 200 . 15 924 1707 625 781 2407 1938 1099 245 1211 . 450 1005 1532 1099 . 227 5328 1396 1671 321 13602 3406 1238 13327 6773 . 163 5659 Guns 2043 | . 983 174 . . 418 163 . 39 . . . . . . . . . . . . . . . . 266 . . . . . . . Cannons 31799 | . . . . . 101 462 170 49 1995 58 623 146 825 . 450 344 . 563 . 164 1584 1374 778 321 2620 1856 . 9454 6428 . 163 1271 Explosions 14553 | . . . . . . 1082 41 439 44 . 441 99 386 . . . 1375 536 . 63 1654 . 893 . 6008 430 . 469 . . . 593 Melee 20777 | . . . . . 405 . 414 254 361 1880 35 . . . . 661 157 . . . 2090 . . . 4695 1120 1238 3352 320 . . 3795 Ramming 160 | . . 26 . 15 . . . . 7 . . . . . . . . . . . . 22 . . 13 . . 52 25 . . . Kinetic 3597 | . 276 . . . 488 432 . 88 839 . . . . . . . . . . . . . . . . . . 605 869 . . . Thermal 9502 | . 707 174 . . 31 . 41 . 110 . 33 . 386 . . 94 . 47 . 63 423 635 150 . 2597 368 . 2807 721 . 51 64 Explosive 4742 | . . . . . . 1082 . 439 . . 408 99 . . . . 1375 536 . . 761 . . . . . . . . . . 42 Electromagnetic 30554 | . . . . . . 193 170 . 1090 58 623 146 825 . 450 250 . 516 . 164 2054 739 1521 321 6297 1918 . 6511 4838 . 112 1758 Impact . | . . . . . . . . . . . . . . . . . . . . . . . . . . . . . . . . . Slashing 7038 | . . . . . 405 . 414 254 339 . . . . . . . . . . . 805 . . . 256 . . 538 279 . . 3748 Piercing 13739 | . . . . . . . . . 22 1880 35 . . . . 661 157 . . . 1285 . . . 4439 1120 1238 2814 41 . . 47 Highest Corruption 27 | . . . . . . . . . 1 5 6 4 . . . 1 1 1 1 1 1 1 1 1 1 . . 4 8 8 . 27 Average Corruption 2 | . . . . . . . . . 1 4 5 3 . . . 1 1 1 1 1 1 1 1 1 1 . . 2 4 8 . 5 Corruption Purged 21 | . . . . . . . . . . . 2 4 . . . . . . . . . . . . . . . 7 8 . . . Effects 214 | . . . . . . . . . 3 11 25 11 . . . 1 3 4 1 1 11 7 1 1 9 . . 23 58 19 . 25 Message Errors 57 | . . . . . . . . . 1 1 6 2 . . . . . 2 . . 6 5 . . 5 . . 6 14 3 . 6 Matter Fused 37 | . . . . . . . . . . 2 5 3 . . . . . . . . . . . . . . . 7 16 3 . 1 Heat Flow Errors 19 | . . . . . . . . . . . 1 3 . . . . . . . . . . . . . . . 2 6 2 . 5 Energy Discharges 33 | . . . . . . . . . 2 1 3 2 . . . . 2 1 . 1 2 1 . . 1 . . 3 6 4 . 4 Parts Rejected 4 | . . . . . . . . . . 1 2 . . . . . . . . . . . . . . . . . . . . 1 Data Loss (minor) 28 | . . . . . . . . . . 5 4 . . . . 1 1 . 1 . 2 . . . 1 . . 1 6 4 . 2 Data Loss (major) 5 | . . . . . . . . . . . 2 . . . . . . . . . . . . . . . . . 1 2 . . Misfires 1 | . . . . . . . . . . . 1 . . . . . . . . . . . . . . . . . . . . . Targeting Errors 28 | . . . . . . . . . . 1 . 1 . . . . . 1 . . 1 1 1 1 2 . . 4 8 1 . 6 Weapon Failures 2 | . . . . . . . . . . . 1 . . . . . . . . . . . . . . . . . 1 . . . Overload Shots 3 | . . . . . . . . . . . . . . . . . . . . . . . . . 3 . . . . . . . Overflow Damage 2685 | . . . . . 27 63 100 123 113 . 1 4 70 . . 57 92 27 . . 409 66 11 . 298 87 . 481 251 . . 405 Projectiles 956 | . . . . . . 1 . . 65 . . 4 70 . . 28 . 27 . . 19 66 . . 40 24 . 321 251 . . 40 Explosions 505 | . . . . . . 62 . 53 4 . 1 . . . . . 79 . . . 95 . 11 . 154 . . 38 . . . 8 Melee 1224 | . . . . . 27 . 100 70 44 . . . . . . 29 13 . . . 295 . . . 104 63 . 122 . . . 357 Knockbacks 32 | . . . . . . . . . 19 . . . . . . . . . . . . . . . . . . 6 7 . . . Impact 1 | . . . . . . . . . . . . . . . . . . . . . . . . . . . . . 1 . . . Kinetic 28 | . . . . . . . . . 16 . . . . . . . . . . . . . . . . . . 6 6 . . . Secondary 3 | . . . . . . . . . 3 . . . . . . . . . . . . . . . . . . . . . . . Self-Inflicted Damage 581 | . . . . . . . . 53 . . . . 39 . . . 1 . . . 163 . . . 177 . . 16 . . . 132 Shots 14 | . . . . . . . . 2 . . . . 1 . . . 1 . . . 3 . . . 3 . . 1 . . . 3 Rammed 13 | . . 3 . 2 . . . . 1 . . . . . . . . . . . . 2 . . 1 . . 3 1 . . . Targets Rammed 14 | . . 3 . 2 . . . . 1 . . . . . . . . . . . . 2 . . 1 . . 4 1 . . . Kicked . | . . . . . . . . . . . . . . . . . . . . . . . . . . . . . . . . . Crushed 1 | . . . . . . . . . . . . . . . . . . . . . . . . . . . . 1 . . . . Highest Temperature 544 | . 228 142 . . 57 96 100 54 266 57 342 202 277 . 370 279 . 312 . 152 464 293 198 196 544 361 62 422 431 123 91 201 Average Temperature 102 | . 70 60 . . 18 41 40 30 95 16 102 95 91 . 182 120 . 110 . 71 167 88 79 97 121 58 14 111 111 60 43 87 Received Heat Transfer 5608 | . 474 42 . . 225 90 18 171 576 36 183 12 15 . 75 78 36 264 . 9 303 62 42 9 996 486 . 984 276 . 4 142 Effects 50 | . 1 . . . . . . . 3 . 1 . . . 2 . . . . . 5 . . . 12 3 . 17 6 . . . Shutdowns 17 | . . . . . . . . . . . 1 . . . . . . . . . 1 . . . 2 2 . 10 1 . . . Energy Bleed 10 | . 1 . . . . . . . . . . . . . 1 . . . . . . . . . 3 . . 3 2 . . . Interference 12 | . . . . . . . . . 3 . . . . . . . . . . . 3 . . . 4 . . . 2 . . . Matter Decay 2 | . . . . . . . . . . . . . . . . . . . . . . . . . . . . 1 1 . . . Short Circuit 2 | . . . . . . . . . . . . . . . . . . . . . . . . . . 1 . 1 . . . . Damage (minor) 5 | . . . . . . . . . . . . . . . 1 . . . . . 1 . . . 1 . . 2 . . . . Damage (major) 2 | . . . . . . . . . . . . . . . . . . . . . . . . . 2 . . . . . . . Siege Activations 2 | . . . . . . . . . . . . . . . . . . . . . . . . . . . . 2 . . . . Total Turns 81 | . . . . . . . . . . . . . . . . . . . . . . . . . . . . 81 . . . . Longest Duration 53 | . . . . . . . . . . . . . . . . . . . . . . . . . . . . 53 . . . . Robots Corrupted 145 | . . . . . . 1 1 . . 1 1 1 2 . 3 . . 2 . 1 10 4 9 1 24 6 . 36 30 . . 12 Combat Hostiles 136 | . . . . . . 1 1 . . 1 1 1 2 . 3 . . 2 . 1 9 3 9 1 21 6 . 35 28 . . 11 Parts Fried 307 | . . . . . . 1 1 . 7 2 3 1 5 . 6 3 . 5 . . 13 10 10 3 51 18 . 78 62 . 1 27 Impact Corruptions . | . . . . . . . . . . . . . . . . . . . . . . . . . . . . . . . . . Robots Melted 1 | . . . . . . . . . . . . . . . . . . . . . . 1 . . . . . . . . . . Combat Hostiles 1 | . . . . . . . . . . . . . . . . . . . . . . 1 . . . . . . . . . . Parts Melted 13 | . 4 1 . . 1 . . 2 . . . . . . . . . . . . . 1 . . 1 . . 2 . . 1 . Heat Transferred 9849 | . 1956 399 . . 74 . 50 . 124 . . . 400 . . 111 . 25 . 100 325 600 200 . 2012 350 . 2437 575 . 37 74 Parts Sabotaged . | . . . . . . . . . . . . . . . . . . . . . . . . . . . . . . . . . Parts Stolen . | . . . . . . . . . . . . . . . . . . . . . . . . . . . . . . . . . Parts Stripped . | . . . . . . . . . . . . . . . . . . . . . . . . . . . . . . . . . Power Chain Reactions 30 | . . . . . . . 1 . 1 . 1 . 3 . . . . . . 1 3 . 1 . 17 1 . 1 . . . . Missiles Intercepted . | . . . . . . . . . . . . . . . . . . . . . . . . . . . . . . . . . Alert | -11 -10 -10 -10 -9 -8 -8 -8 -8 -7 -7 -7 -7 -7 -7 -6 -6 -6 -6 -6 -5 -5 -5 -5 -5 -5 -4 -4 -4 -4 -4 -3 -3 ------- Run | Scr Mat Min Exi Min Mat Gar Mat Gar Fac Was Fac Low Low Zio Pro Fac Low Low Dat Pro Fac Ext Cet Arc Hub Fac Was Fac Arm Lab Res Qua Peak Influence 2683 | . 261 106 . 74 285 771 337 378 209 444 611 . . . . 112 . . . . 442 266 258 141 2683 1460 1072 854 561 . 638 266 Average Influence 311 | . 60 31 . 18 141 517 88 255 103 261 354 . . . . 45 . . . . 165 66 119 111 1016 1254 705 369 266 . 419 114 Maximum Alert Level 5 | . 1 . . . 1 3 1 1 1 2 2 . . . . . . . . . 2 1 1 . 5 4 3 3 2 . 2 1 Low Security (%) 53 | . . . . . . . . . . . . . . . . . . . . . . . . . . . . . . . . . Level 1 17 | . . . . . . . . . . . . . . . . . . . . . . . . . . . . . . . . . Level 2 17 | . . . . . . . . . . . . . . . . . . . . . . . . . . . . . . . . . Level 3 4 | . . . . . . . . . . . . . . . . . . . . . . . . . . . . . . . . . Level 4 5 | . . . . . . . . . . . . . . . . . . . . . . . . . . . . . . . . . Level 5 . | . . . . . . . . . . . . . . . . . . . . . . . . . . . . . . . . . High Security . | . . . . . . . . . . . . . . . . . . . . . . . . . . . . . . . . . Max Security . | . . . . . . . . . . . . . . . . . . . . . . . . . . . . . . . . . Squads Dispatched 110 | . 3 1 . . 1 . 2 . 3 . 5 . 1 . . 5 . . . . 8 3 1 . 24 6 . 19 7 . 8 13 Investigation 25 | . 3 1 . . 1 . 1 . 1 . 3 . . . . 1 . . . . 2 . 1 . 2 1 . 2 . . 4 2 Extermination 32 | . . . . . . . . . 2 . . . . . . 4 . . . . 3 . . . 4 1 . 9 5 . . 4 Reinforcement 20 | . . . . . . . 1 . . . 1 . . . . . . . . . 3 3 . . 3 3 . 2 2 . 1 1 Assault 19 | . . . . . . . . . . . 1 . 1 . . . . . . . . . . . 8 1 . 6 . . 1 1 Garrison 7 | . . . . . . . . . . . . . . . . . . . . . . . . . 7 . . . . . . . Intercept 7 | . . . . . . . . . . . . . . . . . . . . . . . . . . . . . . . 2 5 Construction Impeded 2 | . . . . . . . . . . . . . . . . . . . . . . 1 . . 1 . . . . . . . Haulers Reinforced 2 | . . . . . . . . . . . . . . . . . . . . . 1 . . . . 1 . . . . . . Stealth | -11 -10 -10 -10 -9 -8 -8 -8 -8 -7 -7 -7 -7 -7 -7 -6 -6 -6 -6 -6 -5 -5 -5 -5 -5 -5 -4 -4 -4 -4 -4 -3 -3 --------- Run | Scr Mat Min Exi Min Mat Gar Mat Gar Fac Was Fac Low Low Zio Pro Fac Low Low Dat Pro Fac Ext Cet Arc Hub Fac Was Fac Arm Lab Res Qua Distress Signals 38 | . 2 . . . 1 . 1 . 2 . 1 . . . . 1 . . . . 2 3 2 . 4 3 . 4 3 . 7 2 Communications Jammed . | . . . . . . . . . . . . . . . . . . . . . . . . . . . . . . . . . Distress Signals . | . . . . . . . . . . . . . . . . . . . . . . . . . . . . . . . . . Times Spotted 766 | . 24 13 . . 17 19 10 14 52 7 21 4 24 . 6 10 12 8 . 5 48 32 16 4 128 41 6 118 64 . 7 56 Peak Tracking Total 14 | . 4 12 . . 5 5 3 5 10 3 5 3 8 . 4 2 4 4 . 5 8 4 5 1 14 7 2 11 5 . 4 9 Tactical Retreats 60 | . . . . . 4 2 . 1 10 . 1 . 2 . 1 . . . . . 1 4 1 . 12 3 . 4 9 . . 5 Traps | -11 -10 -10 -10 -9 -8 -8 -8 -8 -7 -7 -7 -7 -7 -7 -6 -6 -6 -6 -6 -5 -5 -5 -5 -5 -5 -4 -4 -4 -4 -4 -3 -3 ------- Run | Scr Mat Min Exi Min Mat Gar Mat Gar Fac Was Fac Low Low Zio Pro Fac Low Low Dat Pro Fac Ext Cet Arc Hub Fac Was Fac Arm Lab Res Qua Traps Triggered 38 | . 2 . . . . 8 2 4 1 . 2 . . . . . . . . . 3 3 . . 2 2 . 3 1 . . 5 Indirectly 2 | . . . . . . . . . . . . . . . . . . . . . 1 . . . 1 . . . . . . . Trap Hack Attempts . | . . . . . . . . . . . . . . . . . . . . . . . . . . . . . . . . . Triggered . | . . . . . . . . . . . . . . . . . . . . . . . . . . . . . . . . . Disarmed . | . . . . . . . . . . . . . . . . . . . . . . . . . . . . . . . . . Reprogrammed 10 | . . . . . . . . . . . . . . . . . . . . . . 6 . . . . . 4 . . . . Reused 2 | . . . . . . . . . . . . . . . . . . . . . . 1 . . . . . 1 . . . . Traps Extracted . | . . . . . . . . . . . . . . . . . . . . . . . . . . . . . . . . . Installed . | . . . . . . . . . . . . . . . . . . . . . . . . . . . . . . . . . Triggered 8 | . . . . . . . . . 1 . . 2 2 . . . . . . . . 1 . . . . . 1 . . . 1 Machines | -11 -10 -10 -10 -9 -8 -8 -8 -8 -7 -7 -7 -7 -7 -7 -6 -6 -6 -6 -6 -5 -5 -5 -5 -5 -5 -4 -4 -4 -4 -4 -3 -3 ---------- Run | Scr Mat Min Exi Min Mat Gar Mat Gar Fac Was Fac Low Low Zio Pro Fac Low Low Dat Pro Fac Ext Cet Arc Hub Fac Was Fac Arm Lab Res Qua Machines Disabled 95 | . . . . . . 5 2 5 1 . 1 . 1 . . . . . . 1 18 3 1 1 34 5 . 2 9 1 1 4 Max in Single Turn 15 | . . . . . . 1 . 1 1 . 1 . 1 . . . . . . 1 2 1 . . 15 3 . 1 1 1 1 1 Garrison Access 8 | . . . . . . . . . . . 1 . . . . . . . . . 2 . . . 1 1 . 1 . . 1 1 Garrison Relay 5 | . . . . . . 3 . 2 . . . . . . . . . . . . . . . . . . . . . . . . Network Hub 4 | . . . . . . . . . . . . . . . . . . . . . . . . . 4 . . . . . . . Machines Sabotaged . | . . . . . . . . . . . . . . . . . . . . . . . . . . . . . . . . . Garrisons Compromised . | . . . . . . . . . . . . . . . . . . . . . . . . . . . . . . . . . Overloaded Fab Kills . | . . . . . . . . . . . . . . . . . . . . . . . . . . . . . . . . . Fab Network Shutdowns 3 | . . . . . . . . . . . . . . . . . . . . . . . . . . . . 1 1 . 1 . Hacking | -11 -10 -10 -10 -9 -8 -8 -8 -8 -7 -7 -7 -7 -7 -7 -6 -6 -6 -6 -6 -5 -5 -5 -5 -5 -5 -4 -4 -4 -4 -4 -3 -3 --------- Run | Scr Mat Min Exi Min Mat Gar Mat Gar Fac Was Fac Low Low Zio Pro Fac Low Low Dat Pro Fac Ext Cet Arc Hub Fac Was Fac Arm Lab Res Qua Machines Accessed 96 | . 7 2 . . 2 . 4 . 2 . 7 1 2 . . 4 1 . 4 . 8 5 2 1 8 3 . 11 9 2 2 9 Terminals 50 | . 6 . . . . . 3 . 1 . 3 . . . . 2 . . . . 3 5 2 . 6 1 . 6 6 . . 6 Fabricators 8 | . . . . . . . . . . . 1 . . . . . . . . . 2 . . . . . . 1 3 . 1 . Repair Stations 4 | . . . . . . . . . 1 . . . . . . 1 . . . . . . . . . . . 1 . . . 1 Recycling Units 8 | . 1 . . . 1 . . . . . 2 . . . . 1 . . . . 1 . . . . . . 2 . . . . Scanalyzers 1 | . . . . . . . . . . . . . . . . . . . . . . . . . . . . . . . . 1 Garrison Access 12 | . . . . . 1 . 1 . . . 1 . . . . . . . . . 2 . . . 2 2 . 1 . . 1 1 Total Hacks 366 | . 18 2 . . 2 . 11 . 3 . 16 1 2 . . 10 1 . 28 . 17 21 5 25 18 5 . 91 40 19 4 27 Successful 244 | . 8 2 . . 2 . 6 . . . 7 1 2 . . 6 1 . 28 . 9 12 2 25 7 4 . 61 15 19 4 23 Failed 122 | . 10 . . . . . 5 . 3 . 9 . . . . 4 . . . . 8 9 3 . 11 1 . 30 25 . . 4 Catastrophic 25 | . 2 . . . . . 1 . 1 . 2 . . . . . . . . . 1 1 1 . 2 . . 6 7 . . 1 Database Lockouts . | . . . . . . . . . . . . . . . . . . . . . . . . . . . . . . . . . Manual 136 | . 16 . . . 1 . 7 . 2 . 10 . . . . 2 . . . . 7 14 4 1 13 2 . 27 16 . 1 13 Terminals 170 | . 17 . . . . . 9 . 2 . 10 . . . . 3 . . . . 6 21 5 . 14 1 . 39 24 . . 19 Fabricators 32 | . . . . . . . . . . . 1 . . . . . . . . . 5 . . . . . . 8 16 . 2 . Repair Stations 49 | . . . . . . . . . 1 . . . . . . 6 . . . . . . . . . . . 40 . . . 2 Recycling Units 11 | . 1 . . . 1 . . . . . 3 . . . . 1 . . . . 2 . . . . . . 3 . . . . Scanalyzers 4 | . . . . . . . . . . . . . . . . . . . . . . . . . . . . . . . . 4 Garrison Access 22 | . . . . . 1 . 2 . . . 2 . . . . . . . . . 4 . . . 4 4 . 1 . . 2 2 Terminal Hacks 143 | . 7 2 . . . . 3 . . . 4 1 2 . . 1 1 . 28 . 1 11 2 25 2 . . 16 8 19 . 10 Record 59 | . . . . . . . . . . . . . . . . . . . 11 . . . . 25 . . . . . 19 . 4 Part Schematic 11 | . 1 . . . . . . . . . 1 . . . . . . . 7 . . 2 . . . . . . . . . . Robot Schematic 8 | . . . . . . . . . . . . . . . . . . . 7 . . . . . . . . . . . . 1 Prototype ID Bank 6 | . . . . . . . . . . . . . . . . . . . 3 . . 1 . . . . . 2 . . . . Open Door 7 | . . 2 . . . . . . . . . 1 2 . . . 1 . . . . . . . . . . . . . . 1 Level Access Points 1 | . . . . . . . . . . . . . . . . . . . . . . . . . . . . . 1 . . . Branch Access Points 9 | . 1 . . . . . . . . . 1 . . . . 1 . . . . 1 1 . . . . . 1 2 . . 1 Emergency Access Points 1 | . . . . . . . . . . . . . . . . . . . . . . . . . . . . . 1 . . . Terminal Index 3 | . 1 . . . . . . . . . . . . . . . . . . . . . . . . . . 1 . . . 1 Garrison Index 1 | . . . . . . . 1 . . . . . . . . . . . . . . . . . . . . . . . . . Unreport Threat 15 | . . . . . . . 2 . . . . . . . . . . . . . . 3 2 . 1 . . 4 3 . . . Locate Traps 3 | . . . . . . . . . . . . . . . . . . . . . . 1 . . . . . 2 . . . . Reprogram Traps 2 | . . . . . . . . . . . . . . . . . . . . . . 1 . . . . . 1 . . . . Surveillance Status 1 | . . . . . . . . . . . . . . . . . . . . . . . . . . . . 1 . . . . Assault Status 1 | . . . . . . . . . . . . . . . . . . . . . . . . . . . . 1 . . . . Recall Investigation 3 | . 1 . . . . . . . . . . . . . . . . . . . . 1 . . . . . . 1 . . . Recall Reinforcements 1 | . . . . . . . . . . . . . . . . . . . . . . 1 . . . . . . . . . . Hauler Manifests 3 | . 1 . . . . . . . . . . . . . . . . . . . . . . . . . . 1 . . . 1 Registered Components 4 | . 2 . . . . . . . . . 1 . . . . . . . . . . . . . 1 . . . . . . . Registered Prototypes 1 | . . . . . . . . . . . . . . . . . . . . . . . . . . . . 1 . . . . Zone Layout 3 | . . . . . . . . . . . 1 . . . . . . . . . . . . . . . . 1 . . . 1 Fabricator Hacks 18 | . . . . . . . . . . . . . . . . . . . . . 3 . . . . . . 6 7 . 2 . Load Schematic 7 | . . . . . . . . . . . . . . . . . . . . . 1 . . . . . . 2 3 . 1 . Build 11 | . . . . . . . . . . . . . . . . . . . . . 2 . . . . . . 4 4 . 1 . Repair Station Hacks 37 | . . . . . . . . . . . . . . . . 4 . . . . . . . . . . . 31 . . . 2 Scan Component 20 | . . . . . . . . . . . . . . . . 2 . . . . . . . . . . . 17 . . . 1 Repair 17 | . . . . . . . . . . . . . . . . 2 . . . . . . . . . . . 14 . . . 1 Recycling Unit Hacks . | . . . . . . . . . . . . . . . . . . . . . . . . . . . . . . . . . Scanalyzer 4 | . . . . . . . . . . . . . . . . . . . . . . . . . . . . . . . . 4 Insert Component 2 | . . . . . . . . . . . . . . . . . . . . . . . . . . . . . . . . 2 Analyze 2 | . . . . . . . . . . . . . . . . . . . . . . . . . . . . . . . . 2 Garrison Access Hacks 15 | . . . . . 1 . 1 . . . 1 . . . . . . . . . 4 . . . 2 3 . 1 . . 1 1 Unlock Access 2 | . . . . . 1 . 1 . . . . . . . . . . . . . . . . . . . . . . . . . Seal Access 4 | . . . . . . . . . . . . . . . . . . . . . 2 . . . . 1 . 1 . . . . Coupler Status 9 | . . . . . . . . . . . 1 . . . . . . . . . 2 . . . 2 2 . . . . 1 1 Unauthorized Hacks 61 | . 2 . . . 2 . 4 . . . 6 . . . . 2 . . . . 4 2 . . 6 2 . 17 . . 2 12 Terminals 12 | . . . . . . . 1 . . . . . . . . . . . . . . 1 . . 1 . . 4 . . . 5 Track 1 | . . . . . . . . . . . . . . . . . . . . . . . . . . . . . . . . 1 Botnet 6 | . . . . . . . 1 . . . . . . . . . . . . . . . . . . . . 3 . . . 2 Operators 5 | . . . . . . . . . . . . . . . . . . . . . . 1 . . 1 . . 1 . . . 2 Fabricators 1 | . . . . . . . . . . . . . . . . . . . . . . . . . . . . 1 . . . . Siphon 1 | . . . . . . . . . . . . . . . . . . . . . . . . . . . . 1 . . . . Repair Stations . | . . . . . . . . . . . . . . . . . . . . . . . . . . . . . . . . . Recycling Units 7 | . 1 . . . 1 . . . . . 1 . . . . 1 . . . . 1 . . . . . . 2 . . . . Tunnel 7 | . 1 . . . 1 . . . . . 1 . . . . 1 . . . . 1 . . . . . . 2 . . . . Scanalyzers . | . . . . . . . . . . . . . . . . . . . . . . . . . . . . . . . . . Garrison Access 7 | . . . . . . . 1 . . . 1 . . . . . . . . . . . . . 2 1 . . . . 1 1 Reprogram 1 | . . . . . . . 1 . . . . . . . . . . . . . . . . . . . . . . . . . Eject 6 | . . . . . . . . . . . 1 . . . . . . . . . . . . . 2 1 . . . . 1 1 Data Cores Recovered 3 | . . . . . . . 1 . 1 . . . . . . . . . . . . . . . 1 . . . . . . . Used 2 | . . . . . . . 1 . . . . . . . . . . . . . . . . . 1 . . . . . . . Hacking Detections 52 | . 5 . . . . . 4 . 2 . 6 . . . . 2 . . . . 7 3 2 . 6 . . 6 6 . . 3 Full Trace Events 4 | . 1 . . . . . . . 1 . 1 . . . . . . . . . . . 1 . . . . . . . . . Feedback Events . | . . . . . . . . . . . . . . . . . . . . . . . . . . . . . . . . . Feedback Blocked . | . . . . . . . . . . . . . . . . . . . . . . . . . . . . . . . . . Robot Schematics Acquired 8 | . . . . . . . . . . . . . . . . . . . 7 . . . . . . . . . . . . 1 Robots Built 6 | . . . . . . . . . . . . . . . . . . . . . . . . . . . . . 4 . 2 . Matter 954 | . . . . . . . . . . . . . . . . . . . . . . . . . . . . . 636 . 318 . Time 337 | . . . . . . . . . . . . . . . . . . . . . . . . . . . . . 168 . 169 . Total Robot Build Rating 36 | . . . . . . . . . . . . . . . . . . . . . . . . . . . . . 24 . 12 . Part Schematics Acquired 23 | . 1 . . . . . . . . . 1 . . . . . . . 7 . . 2 . . . . . . . . . 12 Parts Built 6 | . . . . . . . . . . . . . . . . . . . . . 2 . . . . . . 4 . . . . Matter 1318 | . . . . . . . . . . . . . . . . . . . . . 431 . . . . . . 887 . . . . Time 611 | . . . . . . . . . . . . . . . . . . . . . 111 . . . . . . 500 . . . . Total Part Build Rating 23 | . . . . . . . . . . . . . . . . . . . . . 9 . . . . . . 14 . . . . Parts Repaired 15 | . . . . . . . . . . . . . . . . 1 . . . . . . . . . . . 13 . . . 1 Time 1103 | . . . . . . . . . . . . . . . . 100 . . . . . . . . . . . 949 . . . 54 Parts Recycled . | . . . . . . . . . . . . . . . . . . . . . . . . . . . . . . . . . Recycled Matter . | . . . . . . . . . . . . . . . . . . . . . . . . . . . . . . . . . Retrieved Matter . | . . . . . . . . . . . . . . . . . . . . . . . . . . . . . . . . . Retrieved Components . | . . . . . . . . . . . . . . . . . . . . . . . . . . . . . . . . . Parts Scanalyzed 2 | . . . . . . . . . . . . . . . . . . . . . . . . . . . . . . . . 2 Part Schematics Acquired 2 | . . . . . . . . . . . . . . . . . . . . . . . . . . . . . . . . 2 Parts Damaged . | . . . . . . . . . . . . . . . . . . . . . . . . . . . . . . . . . Bothacking | -11 -10 -10 -10 -9 -8 -8 -8 -8 -7 -7 -7 -7 -7 -7 -6 -6 -6 -6 -6 -5 -5 -5 -5 -5 -5 -4 -4 -4 -4 -4 -3 -3 ------------ Run | Scr Mat Min Exi Min Mat Gar Mat Gar Fac Was Fac Low Low Zio Pro Fac Low Low Dat Pro Fac Ext Cet Arc Hub Fac Was Fac Arm Lab Res Qua Used RIF Installer 2 | . . . . . . 1 . 1 . . . . . . . . . . . . . . . . . . . . . . . . Program Shield 1 | . . . . . . . . 1 . . . . . . . . . . . . . . . . . . . . . . . . Robots Hacked 51 | . . . . . . . . 6 8 6 3 1 . . . . . . . . 3 . . . 6 2 6 5 3 . . 2 Non-combat 18 | . . . . . . . . . 1 . 3 . . . . . . . . . 3 . . . 1 2 . 5 3 . . . Combat 32 | . . . . . . . . 6 7 6 . 1 . . . . . . . . . . . . 4 . 6 . . . . 2 Robot Hacks Applied 66 | . . . . . . . . 6 10 9 3 1 . . . . . . . . 5 . . . 5 2 8 9 4 . . 4 no_distress 1 | . . . . . . . . . . . . . . . . . . . . . . . . . . . . 1 . . . . find_chute 3 | . . . . . . . . . 1 . . . . . . . . . . . 1 . . . . 1 . . . . . . check_alert 1 | . . . . . . . . . . . . . . . . . . . . . . . . . . . . 1 . . . . purge_threat 8 | . . . . . . . . . . . 1 . . . . . . . . . 1 . . . . . . 4 2 . . . locate_traps 1 | . . . . . . . . . . . . . . . . . . . . . 1 . . . . . . . . . . . reprogram_traps 2 | . . . . . . . . . . . . . . . . . . . . . 1 . . . . . . 1 . . . . map_route 1 | . . . . . . . . . . . 1 . . . . . . . . . . . . . . . . . . . . . disable_scanner 1 | . . . . . . . . . . . . . . . . . . . . . . . . . . . . . . . . 1 locate_prototypes 1 | . . . . . . . . . . . . . . . . . . . . . . . . . . . . . . . . 1 report_schematics 1 | . . . . . . . . . . . . . . . . . . . . . . . . . . . . . . . . 1 ignore_targets 17 | . . . . . . . . . . 9 . . . . . . . . . . . . . . . . 8 . . . . . link_fov 1 | . . . . . . . . . . . . . . . . . . . . . . . . . . . . . . . . 1 spike_heat 2 | . . . . . . . . 1 1 . . . . . . . . . . . . . . . . . . . . . . . overwrite_iff 4 | . . . . . . . . . 3 . . . . . . . . . . . . . . . 1 . . . . . . . streamctrl_low 1 | . . . . . . . . . . . . . . . . . . . . . 1 . . . . . . . . . . . streamctrl_high 2 | . . . . . . . . . 2 . . . . . . . . . . . . . . . . . . . . . . . formatsys_low 6 | . . . . . . . . . . . 1 . . . . . . . . . . . . . 1 1 . 2 1 . . . formatsys_high 13 | . . . . . . . . 5 3 . . 1 . . . . . . . . . . . . 3 . . . 1 . . . Manual 1 | . . . . . . . . . . . . . . . . . . . . . . . . . 1 . . . . . . . Relay Couplers Released 45 | . . . . . . 10 . 8 . . 3 . . . . . . . . . . . . . 10 3 . 4 . . 4 3 Ejected 20 | . . . . . . . . . . . 3 . . . . . . . . . . . . . 7 3 . . . . 4 3 Machine Destruction 18 | . . . . . . 10 . 8 . . . . . . . . . . . . . . . . . . . . . . . . Programmers 7 | . . . . . . . . . . . . . . . . . . . . . . . . . 3 . . 4 . . . . Attached 20 | . . . . . . . . 4 3 1 1 1 . . . . . . . . 1 . . . 3 1 1 1 2 . . 1 Robots Rewired 32 | . . . . . . 6 . . . . . . 6 . . . . . . . . 19 . . . . . . 1 . . . Allies Hacked 4 | . . . . . . . . . . . . . . . . . . . . . . . . . 1 . . 1 . . 2 . Hacks Repelled . | . . . . . . . . . . . . . . . . . . . . . . . . . . . . . . . . . Allies | -11 -10 -10 -10 -9 -8 -8 -8 -8 -7 -7 -7 -7 -7 -7 -6 -6 -6 -6 -6 -5 -5 -5 -5 -5 -5 -4 -4 -4 -4 -4 -3 -3 -------- Run | Scr Mat Min Exi Min Mat Gar Mat Gar Fac Was Fac Low Low Zio Pro Fac Low Low Dat Pro Fac Ext Cet Arc Hub Fac Was Fac Arm Lab Res Qua Total Allies 90 | . . 3 . . . 6 . 5 7 . 1 1 6 . . . . . . 1 2 26 5 . 6 1 . 2 7 . 4 7 Largest Group 13 | . . 3 2 2 2 5 4 2 1 . 1 1 4 . . . . . . 1 1 13 4 3 4 1 . 1 2 . 2 7 Highest-Rated Group 482 | . . 40 32 32 32 173 135 30 32 . 20 81 141 . . . . . . 94 99 482 376 282 282 11 . 26 108 . 108 96 Highest-Rated Ally 156 | . . 16 16 16 16 38 38 29 32 . 20 81 81 . . . . . . 94 99 156 137 94 94 11 . 26 54 . 54 47 Total Orders 11 | . . . . . . . . . . . 1 . . . . . . . . . 3 . . . 2 1 . 3 1 . . . AID 8 | . . . . . . . . . . . 1 . . . . . . . . . 1 . . . 2 1 . 2 1 . . . EXPLORE 3 | . . . . . . . . . . . . . . . . . . . . . 2 . . . . . . 1 . . . . Ally Attacks 629 | . . 28 . 3 6 10 18 19 19 . . . 42 . . . . . . 9 17 204 35 18 96 . . . 22 . 11 72 Total Damage 15948 | . . 234 . 45 65 366 344 303 323 . . . 1276 . . . . . . 278 1143 4515 928 789 3200 . . . 685 . 381 1073 Kills 107 | . . 7 . 3 . 5 5 3 1 . . . 13 . . . . . . 2 6 29 6 2 14 . . . 6 . 3 2 Allies Corrupted 2 | . . . . . . . . . . . . . . . . . . . . . . . . . 2 . . . . . . . Allies Melted . | . . . . . . . . . . . . . . . . . . . . . . . . . . . . . . . . . Intel | -11 -10 -10 -10 -9 -8 -8 -8 -8 -7 -7 -7 -7 -7 -7 -6 -6 -6 -6 -6 -5 -5 -5 -5 -5 -5 -4 -4 -4 -4 -4 -3 -3 ------- Run | Scr Mat Min Exi Min Mat Gar Mat Gar Fac Was Fac Low Low Zio Pro Fac Low Low Dat Pro Fac Ext Cet Arc Hub Fac Was Fac Arm Lab Res Qua Robot Analysis Total . | . . . . . . . . . . . . . . . . . . . . . . . . . . . . . . . . . Derelict Logs Recovered 13 | . . 2 . 2 . . . . . . . 1 2 1 2 . 1 1 . 1 . . . . . . . . . . . . Drone Launches 9 | . . . . . . . . . . . . . . . . . . . . . 6 . . . . . . 3 . . . . Drone Recoveries . | . . . . . . . . . . . . . . . . . . . . . . . . . . . . . . . . . Exploration | -11 -10 -10 -10 -9 -8 -8 -8 -8 -7 -7 -7 -7 -7 -7 -6 -6 -6 -6 -6 -5 -5 -5 -5 -5 -5 -4 -4 -4 -4 -4 -3 -3 ------------- Run | Scr Mat Min Exi Min Mat Gar Mat Gar Fac Was Fac Low Low Zio Pro Fac Low Low Dat Pro Fac Ext Cet Arc Hub Fac Was Fac Arm Lab Res Qua Turns Passed 41211 | . 1495 1674 287 860 435 1794 839 1197 1406 539 800 2049 1187 128 810 1649 943 842 166 557 3450 1344 526 237 2566 949 272 5909 3151 515 901 1734 Spaces Moved 16252 | 1 645 880 159 475 160 806 373 503 477 212 337 650 510 65 369 570 472 377 93 240 1342 614 236 117 905 375 105 1631 1269 252 431 601 Core . | . . . . . . . . . . . . . . . . . . . . . . . . . . . . . . . . . Treads 15540 | . 109 837 159 475 69 806 373 503 475 173 337 650 510 65 369 570 472 377 93 240 1342 614 236 117 905 375 105 1631 1269 252 431 601 Legs 580 | 1 536 43 . . . . . . . . . . . . . . . . . . . . . . . . . . . . . . Wheels 132 | . . . . . 91 . . . 2 39 . . . . . . . . . . . . . . . . . . . . . . Hover . | . . . . . . . . . . . . . . . . . . . . . . . . . . . . . . . . . Flight . | . . . . . . . . . . . . . . . . . . . . . . . . . . . . . . . . . Fastest Speed 120 | 120 120 180 180 180 160 180 200 206 190 172 172 172 172 200 200 180 180 180 180 180 180 180 180 180 180 180 180 180 165 180 180 172 Average Speed 184 | 120 194 181 180 180 169 190 201 206 204 187 182 189 188 200 200 180 180 180 180 180 180 180 180 180 180 185 180 180 177 180 180 182 Slowest Speed 285 | 120 210 210 180 180 260 200 206 206 225 285 192 192 200 200 200 180 180 180 180 180 180 180 180 180 180 220 220 180 200 220 180 260 Overloaded Moves . | . . . . . . . . . . . . . . . . . . . . . . . . . . . . . . . . . Propulsion Burnouts . | . . . . . . . . . . . . . . . . . . . . . . . . . . . . . . . . . Robots Hopped 1 | . . . . . . . . . . . . . 1 . . . . . . . . . . . . . . . . . . . Cave-ins Triggered 2 | . . . . . . . . . . . . . . . . . . . . . 1 . . . 1 . . . . . . . Exploration Rate (%) 56 | 2 95 100 52 99 12 81 54 69 19 83 12 67 56 12 56 17 68 52 74 37 49 75 70 81 88 18 67 49 76 99 14 50 Regions Visited 32 Branch Regions 18 Pre-discovered Areas 11 | . 1 2 . 1 1 . . . . . 1 . . . . 1 . . 1 . 1 . . . . . . 2 . . . . Known Exits Taken 20 | . 1 . . . 1 . 1 . . . 1 1 1 1 1 1 1 1 1 1 1 1 . . 1 . . 1 1 1 1 . Unknown Exits Taken 6 | 1 . 1 1 1 . . . . . . . . . . . . . . . . . . 1 1 . . . . . . . . Scrap Searched 20 | . . 1 . 2 . . . . . . . 5 1 1 4 . 2 3 . 1 . . . . . . . . . . . . Spaces Dug 520 | . . . . . 6 2 15 5 14 . 19 21 39 . 3 51 11 7 . 5 68 . . . 13 14 . 89 46 4 17 71 Terrain Destroyed 1621 | . . . . . 6 30 17 36 20 . 28 28 51 . 3 52 80 31 . 12 127 1 2 . 762 14 . 113 63 4 18 123 Melee 460 | . . . . . 6 . 15 . 14 . 19 21 39 . 3 51 9 7 . 5 67 . . . 13 14 . 89 46 4 17 21 Projectile 39 | . . . . . . . . . . . . . . . . 1 . . . . 4 1 . . 4 . . 19 9 . 1 . AOE 1122 | . . . . . . 30 2 36 6 . 9 7 12 . . . 71 24 . 7 56 . 2 . 745 . . 5 8 . . 102 Actions | -11 -10 -10 -10 -9 -8 -8 -8 -8 -7 -7 -7 -7 -7 -7 -6 -6 -6 -6 -6 -5 -5 -5 -5 -5 -5 -4 -4 -4 -4 -4 -3 -3 --------- Run | Scr Mat Min Exi Min Mat Gar Mat Gar Fac Was Fac Low Low Zio Pro Fac Low Low Dat Pro Fac Ext Cet Arc Hub Fac Was Fac Arm Lab Res Qua Total 24460 | . 766 942 161 479 255 1010 432 619 753 315 448 1419 618 64 417 1033 526 498 92 348 2090 770 302 130 1410 527 153 4076 1920 303 528 1056 Wait 4615 | . 18 25 . 3 21 31 4 37 106 . 25 725 16 . 28 354 16 83 . 98 468 10 14 6 148 45 . 1806 246 1 46 235 Move 16220 | . 644 879 158 474 160 805 372 501 477 211 336 649 507 64 368 569 471 376 92 239 1341 613 235 116 904 375 104 1630 1268 251 430 601 Hop 1 | . . . . . . . . . . . . . 1 . . . . . . . . . . . . . . . . . . . Pick Up 224 | . 16 13 1 . 12 13 8 6 14 13 6 2 1 . . 3 1 2 . . 19 3 9 . 11 3 5 32 8 9 8 6 Fast Attach 105 | . 1 . . . 7 1 1 . 2 3 4 . 1 . . 3 1 . . . 10 1 3 . 4 2 2 13 25 8 2 11 Attach 193 | . 6 1 1 . 6 . . 3 11 3 3 1 . . 2 2 . . . . 11 1 1 1 6 9 4 48 40 5 5 23 Detach 157 | . . . . . 4 1 1 2 3 6 4 . . . . 2 1 . . . 6 1 1 . 3 5 3 43 46 6 2 17 Swap 456 | . 5 2 . . 4 15 6 18 42 3 22 14 12 . 5 9 1 13 . 2 38 22 8 . 69 9 2 83 33 1 4 14 Drop 218 | . . 9 1 . 5 13 13 4 9 21 1 1 4 . 1 1 . 2 . . 25 1 10 . 9 1 3 26 29 13 9 7 Fire 1092 | . 76 9 . . 18 40 8 14 51 11 20 6 35 . 9 8 14 15 . 4 53 73 21 7 125 36 9 212 166 . 4 48 Melee 996 | . . . . . 18 . 19 21 34 44 27 21 40 . 3 82 21 7 . 5 114 . . . 130 42 21 178 52 9 18 90 Ram . | . . . . . . . . . . . . . . . . . . . . . . . . . . . . . . . . . Kick . | . . . . . . . . . . . . . . . . . . . . . . . . . . . . . . . . . Crush 14 | . . 3 . 2 . . . . 1 . . . . . . . . . . . . 2 . . 1 . . 4 1 . . . Escape Stasis 36 | . . . . . . 15 . 8 . . . . . . . . . . . . 2 7 . . . . . . . . . 4 Rewire 129 | . . 1 . . . 76 . 5 3 . . . 1 . 1 . . . . . . 36 . . . . . . 6 . . . Trap . | . . . . . . . . . . . . . . . . . . . . . . . . . . . . . . . . . Miscellaneous 4 | . . . . . . . . . . . . . . . . . . . . . 3 . . . . . . 1 . . . . Route ------- -11/Scrapyard -10/Materials (discovered 4 exits: [*Mat x3] / *Min) -10/Mines (discovered 3 exits: [*Mat x2] / [*Exi]) -10/Exiles -9/Mines (discovered 2 exits: *Mat x2) -8/Materials (discovered 2 exits: Fac / Gar) -8/Garrison (discovered 3 exits: *Mat x3) -8/Materials (discovered 2 exits: *Fac / Gar) -8/Garrison (discovered 3 exits: *Fac x3) -7/Factory -7/Waste -7/Factory (discovered 5 exits: Fac / Sto x2 / *Low x2) -7/Lower Caves -7/Lower Caves -7/Zion -6/Proximity Caves -6/Factory (discovered 2 exits: *Low x2) -6/Lower Caves -6/Lower Caves -6/Data Miner -5/Proximity Caves -5/Factory (discovered 8 exits: *Fac x4 / Upp x2 / *Ext x2) -5/Extension (discovered 2 exits: *Fac / *Cet) -5/Cetus (discovered 2 exits: *Fac / *Arc) -5/Archives (discovered 3 exits: *Fac / *Hub x2) -5/Hub_04(d) (discovered 4 exits: *Fac x4) -4/Factory -4/Waste -4/Factory (discovered 4 exits: *Res / *Upp x2 / *Arm) -4/Armory (discovered 3 exits: *Res x2 / *Lab) -4/Lab -3/Research (discovered 2 exits: *Res / *Qua) -3/Quarantine History --------- Turn | Location | Event 1 | -11/Scrapyard | Discovered new exit (range 0) 1 | -11/Scrapyard | Entered Materials 270 | -10/Materials | Discovered new exit (range 6) 415 | -10/Materials | Lost 3 parts (1p1n1w) 525 | -10/Materials | Identified exit to Mines 531 | -10/Materials | Build established: Hauler-Mutant 906 | -10/Materials | Discovered new exit (range 16) 1219 | -10/Materials | Discovered new exit (range 13) 1496 | -10/Materials | Entered Mines 1523 | -10/Mines | Assembled infested the area 1534 | -10/Mines | Core integrity fell below 50% 1651 | -10/Mines | Learned location of Storage (-7) 1661 | -10/Mines | Learned 4 Materials zone layouts 1789 | -10/Mines | Learned location of Zion (-7) 1847 | -10/Mines | Met a Derelict who couldn't figure out how to use a Trap Extractor 1989 | -10/Mines | Discovered new exit (range 8) 2045 | -10/Mines | A weapon hastily lodged in a ceiling crevice suddenly fell to the ground 2047 | -10/Mines | Discovered new exit (range 16) 2123 | -10/Mines | Met a Derelict shopkeep closing up shop 2234 | -10/Mines | Assisted by bots powering up and referring to "LRC-V3" 3152 | -10/Mines | Discovered new exit (range 5) 3170 | -10/Mines | Entered Exiles 3170 | -10/Exiles | Accompanied by 2 allies 3214 | -10/Exiles | Met 8R-AWN 3244 | -10/Exiles | Met EX-HEX 3293 | -10/Exiles | Met EX-BIN 3314 | -10/Exiles | Met EX-DEC 3439 | -10/Exiles | Discovered new exit (range 10) 3457 | -10/Exiles | Entered Mines 3457 | -9/Mines | Accompanied by 2 allies 3628 | -9/Mines | Discovered new exit (range 9) 3736 | -9/Mines | Learned Materials stockpile data 4140 | -9/Mines | Discovered new exit (range 6) 4317 | -9/Mines | Entered Materials 4317 | -8/Materials | Accompanied by 2 allies 4317 | -8/Materials | Evolved 4 slots: Propulsion x1, Utility x3 4318 | -8/Materials | Identified exit to Factory 4752 | -8/Materials | Identified exit to Garrison 4752 | -8/Materials | Entered Garrison 4826 | -8/Garrison | Triggered checkpoint 4880 | -8/Garrison | Triggered checkpoint 4962 | -8/Garrison | Discovered new exit (range 14) 5120 | -8/Garrison | Triggered checkpoint 5213 | -8/Garrison | Discovered new exit (range 8) 5381 | -8/Garrison | Discovered new exit (range 15) 5415 | -8/Garrison | Installed Relay Interface Framework 5467 | -8/Garrison | Triggered checkpoint 5518 | -8/Garrison | Garrison Relay disabled 6248 | -8/Garrison | Triggered checkpoint 6272 | -8/Garrison | Garrison Relay disabled 6400 | -8/Garrison | Triggered checkpoint 6438 | -8/Garrison | Garrison Relay disabled 6546 | -8/Garrison | Entered Materials 6546 | -8/Materials | Accompanied by 4 allies 6565 | -8/Materials | Build established: Bothacker-Mutant 7261 | -8/Materials | Discovered exit to Factory (range 7) 7294 | -8/Materials | Identified exit to Garrison 7385 | -8/Materials | Entered Garrison 7393 | -8/Garrison | Triggered checkpoint 7510 | -8/Garrison | Triggered checkpoint 7636 | -8/Garrison | Discovered exit to Factory (range 8) 7663 | -8/Garrison | Expanded RIF knowledge: Program Shield 7714 | -8/Garrison | Triggered checkpoint 7887 | -8/Garrison | Garrison Relay disabled 8145 | -8/Garrison | Triggered checkpoint 8228 | -8/Garrison | Discovered exit to Factory (range 10) 8306 | -8/Garrison | Triggered checkpoint 8355 | -8/Garrison | Garrison Relay disabled 8482 | -8/Garrison | Triggered checkpoint 8568 | -8/Garrison | Discovered exit to Factory (range 8) 8582 | -8/Garrison | Entered Factory 8582 | -7/Factory | Evolved 2 slots: Utility x2 9971 | -7/Factory | Lost 3 parts (1n1u1w) 9988 | -7/Factory | Sucked down chute 9988 | -7/Factory | Entered Waste 10003 | -7/Waste | EMP discharged 10041 | -7/Waste | Spotted C-40 Crusher 10068 | -7/Waste | Destroyed C-40 Crusher 10078 | -7/Waste | Spotted C-40 Crusher 10084 | -7/Waste | Spotted C-40 Crusher 10088 | -7/Waste | Found Damper Plating 10092 | -7/Waste | Found Damper Plating 10103 | -7/Waste | EMP discharged 10124 | -7/Waste | Spotted C-40 Crusher 10155 | -7/Waste | Spotted C-40 Crusher 10158 | -7/Waste | Destroyed C-40 Crusher 10185 | -7/Waste | Spotted C-40 Crusher 10203 | -7/Waste | EMP discharged 10224 | -7/Waste | Destroyed C-40 Crusher 10227 | -7/Waste | Found Damper Plating 10251 | -7/Waste | Destroyed C-40 Crusher 10258 | -7/Waste | Destroyed C-40 Crusher 10267 | -7/Waste | Found Damper Plating 10303 | -7/Waste | EMP discharged 10403 | -7/Waste | EMP discharged 10455 | -7/Waste | Destroyed C-40 Crusher 10472 | -7/Waste | Found Damper Plating 10503 | -7/Waste | EMP discharged 10506 | -7/Waste | Discovered new exit (range 12) 10527 | -7/Waste | Entered Factory 10558 | -7/Factory | Build established: Hauler-Mutant 10692 | -7/Factory | Identified exit to Storage 10692 | -7/Factory | Identified exit to Lower Caves 11159 | -7/Factory | Discovered new exit (range 62) 11327 | -7/Factory | Entered Lower Caves 11360 | -7/Lower Caves | Attracted the attention of an 0b10 checkpoint 12732 | -7/Lower Caves | Learned Factory terminal intel 12925 | -7/Lower Caves | Spotted B-75 Beast 13154 | -7/Lower Caves | Assimilated Beast 4a with formatsys_high 13274 | -7/Lower Caves | Discovered new exit (range 14) 13371 | -7/Lower Caves | Identified exit to Lower Caves 13376 | -7/Lower Caves | Entered another Lower Caves area 13376 | -7/Lower Caves | Accompanied by 1 ally 13517 | -7/Lower Caves | Attacked by a delusional Derelict stockpiling Unaware 14218 | -7/Lower Caves | Found Prototype Device 14381 | -7/Lower Caves | Attracted the attention of an 0b10 outpost 14553 | -7/Lower Caves | Discovered new exit (range 6) 14561 | -7/Lower Caves | Identified exit to Zion 14563 | -7/Lower Caves | Entered Zion 14603 | -7/Zion | Learned Factory stockpile data 14671 | -7/Zion | Discovered new exit (range 8) 14689 | -7/Zion | Identified exit to Proximity Caves 14691 | -7/Zion | Entered Proximity Caves 14826 | -6/Proximity Caves | Attracted the attention of an 0b10 checkpoint 15296 | -6/Proximity Caves | Learned Factory emergency access door positions 15493 | -6/Proximity Caves | Discovered new exit (range 5) 15499 | -6/Proximity Caves | Identified exit to Factory 15501 | -6/Proximity Caves | Entered Factory 15501 | -6/Factory | Evolved 2 slots: Propulsion x1, Utility x1 15502 | -6/Factory | Identified exit to Lower Caves 15505 | -6/Factory | Loaded intel: 20 terminal locations 16497 | -6/Factory | Repaired Lrn. Sensor Array 17150 | -6/Factory | Entered Lower Caves 17151 | -6/Lower Caves | Encountered a Warlord checkpoint 17305 | -6/Lower Caves | Ambushed by wild Derelicts 18050 | -6/Lower Caves | Learned Factory security intel 18087 | -6/Lower Caves | Discovered new exit (range 4) 18091 | -6/Lower Caves | Identified exit to Lower Caves 18093 | -6/Lower Caves | Entered another Lower Caves area 18252 | -6/Lower Caves | Learned Factory emergency access door positions 18515 | -6/Lower Caves | Encountered a Warlord checkpoint 18881 | -6/Lower Caves | Discovered new exit (range 9) 18894 | -6/Lower Caves | Identified exit to Data Miner 18935 | -6/Lower Caves | Entered Data Miner 18935 | -6/Data Miner | Discovered new exit (range 6) 18970 | -6/Data Miner | Met Data Miner 19020 | -6/Data Miner | Learned location of Section 7 (-3) 19020 | -6/Data Miner | Acquired the access code to Warlord's prototype stash 19058 | -6/Data Miner | Received God Mode back door access code from Data Miner 19099 | -6/Data Miner | Identified exit to Proximity Caves 19101 | -6/Data Miner | Entered Proximity Caves 19236 | -5/Proximity Caves | Identified exit to Factory 19309 | -5/Proximity Caves | Escorted by Enhanced Grunt 19545 | -5/Proximity Caves | Received a Behemoth hack from an annoying Tinkerer 19658 | -5/Proximity Caves | Entered Factory 19658 | -5/Factory | Accompanied by 1 ally 19658 | -5/Factory | Evolved 2 slots: Utility x2 19659 | -5/Factory | Identified exit to Upper Caves 19659 | -5/Factory | Identified Heart of Steel 19734 | -5/Factory | Fabricated Adv. System Shield (x1) 20176 | -5/Factory | Fabricated Adv. EMP Blaster (x1) 20237 | -5/Factory | Discovered new exit (range 5) 20244 | -5/Factory | Identified exit to Factory 20321 | -5/Factory | Incoming investigation squad redirected 20407 | -5/Factory | Identified exit to Extension 20427 | -5/Factory | Discovered exit to Factory (range 15) 20597 | -5/Factory | Destroyed 10 combat bots 21175 | -5/Factory | Incoming investigation squad redirected 21387 | -5/Factory | Discovered exit to Factory (range 16) 21906 | -5/Factory | Crushed by falling debris 21918 | -5/Factory | Discovered exit to Factory (range 15) 22211 | -5/Factory | Heart of Steel transformed into Warbot 22587 | -5/Factory | Found Prototype Launcher 22587 | -5/Factory | Identified Tesla Bomb Launcher 23108 | -5/Factory | Entered Extension 23171 | -5/Extension | Rescued a captive Derelict 23172 | -5/Extension | Rescued a captive Derelict 23191 | -5/Extension | Rescued A7 23293 | -5/Extension | Rescued a captive Derelict 23767 | -5/Extension | Spotted B-75 Beast 23785 | -5/Extension | Spotted B-75 Beast 23799 | -5/Extension | Destroyed B-75 Beast 23812 | -5/Extension | Destroyed B-75 Beast 23880 | -5/Extension | Rescued a captive Derelict 23918 | -5/Extension | Rescued a captive Derelict 24069 | -5/Extension | Identified exit to Cetus 24153 | -5/Extension | Rescued a captive Derelict 24415 | -5/Extension | Discovered exit to Factory (range 10) 24452 | -5/Extension | Entered Cetus 24452 | -5/Cetus | Accompanied by 4 allies 24457 | -5/Cetus | Acquired a Cetus Manufacturing Module code from A7 24476 | -5/Cetus | Spotted Cetus Guard 24476 | -5/Cetus | Spotted Cetus Guard 24484 | -5/Cetus | Destroyed Cetus Guard 24484 | -5/Cetus | Spotted Cetus Guard 24485 | -5/Cetus | Spotted Cetus Guard 24486 | -5/Cetus | Destroyed Cetus Guard 24489 | -5/Cetus | Destroyed Cetus Guard 24492 | -5/Cetus | Destroyed Cetus Guard 24533 | -5/Cetus | Extracted ID and sensor layout for unrecognized location from A7's data core 24698 | -5/Cetus | Started Cetus Manufacturing Module 24723 | -5/Cetus | Manufactured an Enhanced Grunt 24748 | -5/Cetus | Manufactured an Enhanced Grunt 24773 | -5/Cetus | Manufactured an Enhanced Grunt 24779 | -5/Cetus | Discovered new exit (range 16) 24798 | -5/Cetus | Manufactured an Enhanced Grunt 24823 | -5/Cetus | Manufactured an Enhanced Grunt 24834 | -5/Cetus | Spotted Cetus Guard 24834 | -5/Cetus | Spotted Cetus Guard 24843 | -5/Cetus | Destroyed Cetus Guard 24843 | -5/Cetus | Spotted Cetus Guard 24845 | -5/Cetus | Destroyed Cetus Guard 24845 | -5/Cetus | Spotted Cetus Guard 24848 | -5/Cetus | Allies destroyed Cetus Guard 24849 | -5/Cetus | Destroyed Cetus Guard 24862 | -5/Cetus | Discovered exit to Factory (range 15) 24871 | -5/Cetus | Met Revision 17 24978 | -5/Cetus | Entered Archives 24978 | -5/Archives | Accompanied by 3 allies 25067 | -5/Archives | Unable to access archive contents 25077 | -5/Archives | Discovered new exit (range 14) 25094 | -5/Archives | Unable to access archive contents 25099 | -5/Archives | Discovered new exit (range 15) 25119 | -5/Archives | Discovered exit to Factory (range 15) 25184 | -5/Archives | Unable to access archive contents 25215 | -5/Archives | Entered Hub_04(d) 25215 | -5/Hub_04(d) | Accompanied by 3 allies 25414 | -5/Hub_04(d) | Discovered exit to Factory (range 3) 25429 | -5/Hub_04(d) | Garrison activated, responded to threat 25454 | -5/Hub_04(d) | Discovered exit to Factory (range 9) 25656 | -5/Hub_04(d) | Incoming assault squad redirected 26148 | -5/Hub_04(d) | Discovered exit to Factory (range 10) 26255 | -5/Hub_04(d) | Spotted B-75 Beast 26283 | -5/Hub_04(d) | Network Hub disabled 26297 | -5/Hub_04(d) | Befriended a Behemoth using the annoying Tinkerer's hack 26325 | -5/Hub_04(d) | Destroyed B-75 Beast 26338 | -5/Hub_04(d) | Network Hub disabled 26340 | -5/Hub_04(d) | Spotted Lightning 26340 | -5/Hub_04(d) | Spotted Lightning 26343 | -5/Hub_04(d) | Spotted Lightning 26349 | -5/Hub_04(d) | Spotted Lightning 26350 | -5/Hub_04(d) | Spotted Lightning 26353 | -5/Hub_04(d) | Spotted Lightning 26361 | -5/Hub_04(d) | Crushed by falling debris 26410 | -5/Hub_04(d) | Destroyed Lightning 26415 | -5/Hub_04(d) | First assault squad dispatched 26470 | -5/Hub_04(d) | Destroyed Lightning 26477 | -5/Hub_04(d) | Found Prototype Energy Cannon 26501 | -5/Hub_04(d) | Destroyed 8 combat bots 26520 | -5/Hub_04(d) | Destroyed Lightning 26543 | -5/Hub_04(d) | Destroyed Lightning 26561 | -5/Hub_04(d) | Destroyed Lightning 26567 | -5/Hub_04(d) | Destroyed Lightning 26575 | -5/Hub_04(d) | Found Prototype Device 26575 | -5/Hub_04(d) | Identified EM Dispersion Field 26587 | -5/Hub_04(d) | Found Prototype Device 26587 | -5/Hub_04(d) | Identified Exp. Phase Shifter 26829 | -5/Hub_04(d) | Incoming investigation squad redirected 27095 | -5/Hub_04(d) | Incoming assault squad redirected 27100 | -5/Hub_04(d) | Discovered exit to Factory (range 5) 27155 | -5/Hub_04(d) | Garrison activated, responded to threat 27336 | -5/Hub_04(d) | Incoming assault squad redirected 27545 | -5/Hub_04(d) | Network Hub disabled 27545 | -5/Hub_04(d) | Network Hub disabled 27582 | -5/Hub_04(d) | Spotted Lightning 27584 | -5/Hub_04(d) | Spotted Lightning 27584 | -5/Hub_04(d) | Spotted Lightning 27584 | -5/Hub_04(d) | Spotted Lightning 27584 | -5/Hub_04(d) | Spotted Lightning 27584 | -5/Hub_04(d) | Spotted Lightning 27596 | -5/Hub_04(d) | Destroyed Lightning 27620 | -5/Hub_04(d) | Destroyed Lightning 27630 | -5/Hub_04(d) | Incoming assault squad redirected 27683 | -5/Hub_04(d) | Destroyed Lightning 27695 | -5/Hub_04(d) | Destroyed Lightning 27701 | -5/Hub_04(d) | Found Prototype Energy Cannon 27719 | -5/Hub_04(d) | Destroyed Lightning 27733 | -5/Hub_04(d) | Found Prototype Energy Cannon 27740 | -5/Hub_04(d) | Destroyed 18 combat bots 27754 | -5/Hub_04(d) | Destroyed Lightning 27781 | -5/Hub_04(d) | Entered Factory 27781 | -4/Factory | Evolved 2 slots: Power x1, Utility x1 27952 | -4/Factory | Discovered new exit (range 4) 28049 | -4/Factory | Spotted B-86 Titan 28433 | -4/Factory | Identified EMDS (x3) 28531 | -4/Factory | First assault squad dispatched 28629 | -4/Factory | Destroyed 7 combat bots 28730 | -4/Factory | Sucked down chute 28730 | -4/Factory | Entered Waste 28745 | -4/Waste | EMP discharged 28749 | -4/Waste | Spotted C-40 Crusher 28763 | -4/Waste | Spotted C-40 Crusher 28789 | -4/Waste | Destroyed C-40 Crusher 28805 | -4/Waste | Found Damper Plating 28809 | -4/Waste | Spotted C-40 Crusher 28822 | -4/Waste | Spotted C-40 Crusher 28824 | -4/Waste | Spotted C-40 Crusher 28826 | -4/Waste | Destroyed C-40 Crusher 28835 | -4/Waste | Found Damper Plating 28839 | -4/Waste | Found Damper Plating 28845 | -4/Waste | EMP discharged 28889 | -4/Waste | Destroyed C-40 Crusher 28918 | -4/Waste | Spotted C-40 Crusher 28945 | -4/Waste | EMP discharged 28982 | -4/Waste | Discovered new exit (range 11) 29002 | -4/Waste | Entered Factory 29239 | -4/Factory | Discovered new exit (range 41) 29752 | -4/Factory | First assault squad dispatched 29836 | -4/Factory | Incoming investigation squad redirected 29871 | -4/Factory | Incoming assault squad redirected 29904 | -4/Factory | Destroyed 12 combat bots 30517 | -4/Factory | Incoming assault squad redirected 30520 | -4/Factory | Incoming assault squad redirected 30654 | -4/Factory | Destroyed 7 combat bots 30770 | -4/Factory | Incoming assault squad redirected 31134 | -4/Factory | Repaired Centrium Heavy Treads 31243 | -4/Factory | Repaired Centrium Heavy Treads 31289 | -4/Factory | Repaired Lrn. Sensor Array 31398 | -4/Factory | Repaired Centrium Medium Armor Plating 31508 | -4/Factory | Repaired Centrium Medium Armor Plating 31618 | -4/Factory | Repaired Centrium Medium Armor Plating 31650 | -4/Factory | Repaired Hcp. Storage Unit 31677 | -4/Factory | Repaired Hcp. Storage Unit 31705 | -4/Factory | Repaired Hcp. Storage Unit 31732 | -4/Factory | Repaired Hcp. Storage Unit 31814 | -4/Factory | Repaired Ion Burst Cannon 31841 | -4/Factory | Repaired Hcp. Storage Unit 31880 | -4/Factory | Repaired Adv. Signal Interpreter 32138 | -4/Factory | Identified exit to Upper Caves 32138 | -4/Factory | Identified exit to Armory 32323 | -4/Factory | Incoming investigation squad redirected 32889 | -4/Factory | Fabricated Exp. Sensor Array (x1) 33021 | -4/Factory | Fabricated Adv. EMP Blaster (x1) 33139 | -4/Factory | Fabricated Adv. EMP Blaster (x1) 33273 | -4/Factory | Fabricated Adv. EMP Blaster (x1) 33405 | -4/Factory | Local fabrication network quarantined 33846 | -4/Factory | Discovered new exit (range 7) 34889 | -4/Factory | Destroyed 8 combat bots 34911 | -4/Factory | Entered Armory 35288 | -4/Armory | Fabricated P-70 Sage? 35581 | -4/Armory | Core integrity fell below 50% 35877 | -4/Armory | Fabricated P-70 Sage? 35994 | -4/Armory | Spotted B-86 Titan 36020 | -4/Armory | Destroyed B-86 Titan 36020 | -4/Armory | Local fabrication network quarantined 36805 | -4/Armory | Destroyed 9 combat bots 36899 | -4/Armory | Identified exit to Research 37127 | -4/Armory | Found Unknown Launcher 37127 | -4/Armory | Identified Fusion Bomb Launcher 37179 | -4/Armory | Found Prototype Processor 37179 | -4/Armory | Identified Exp. Signal Interpreter 37190 | -4/Armory | Found Prototype Slashing Weapon 37190 | -4/Armory | Identified Molecular Scythe 37201 | -4/Armory | Found Prototype Launcher 37201 | -4/Armory | Identified Scatter Rocket Array 37210 | -4/Armory | Found Prototype Hackware 37210 | -4/Armory | Identified Exp. Hacking Suite 37564 | -4/Armory | P-70 Sage assimilated allied Disruptor 7a 38050 | -4/Armory | Discovered new exit (range 4) 38055 | -4/Armory | Identified exit to Lab 38062 | -4/Armory | Entered Lab 38062 | -4/Lab | Discovered exit to Research (range 9) 38082 | -4/Lab | Hidden lab's door opened automatically 38082 | -4/Lab | Sensor layout match revealed 38083 | -4/Lab | Gained access to the hidden lab's interior 38084 | -4/Lab | Unable to decrypt terminal 38138 | -4/Lab | Found Prototype Special Weapon 38138 | -4/Lab | Identified Gui. Remote Datajack 38164 | -4/Lab | Unable to decrypt terminal 38182 | -4/Lab | Found Prototype Energy Gun 38182 | -4/Lab | Identified Tachyon Dispersion Ray 38188 | -4/Lab | Found Prototype Energy Cannon 38188 | -4/Lab | Identified Warp Cannon 38194 | -4/Lab | Found Prototype Device 38194 | -4/Lab | Identified AEGIS Remote Shield 38199 | -4/Lab | Found Prototype Hackware 38199 | -4/Lab | Identified Deep Network Scanner 38259 | -4/Lab | Found Alien Artifact 38259 | -4/Lab | Identified Core Regenerator 38259 | -4/Lab | Used Core Regenerator, restored core integrity (+287) 38296 | -4/Lab | Found Alien Artifact 38346 | -4/Lab | Found Alien Artifact 38512 | -4/Lab | Found Alien Artifact 38531 | -4/Lab | Unable to decrypt terminal 38575 | -4/Lab | Detected for breach 38577 | -4/Lab | Entered Research 38577 | -3/Research | Evolved 2 slots: Utility x2 38679 | -3/Research | Local fabrication network quarantined 38777 | -3/Research | Revision forces began assault on 0b10 38840 | -3/Research | Fabricated P-70 Sage? 38866 | -3/Research | Met up with Revision 17++ 39113 | -3/Research | Intercept squad dispatched 39113 | -3/Research | Spotted Tracker 39122 | -3/Research | Allies destroyed Tracker 39146 | -3/Research | Discovered new exit (range 4) 39151 | -3/Research | Identified exit to Research 39176 | -3/Research | Spotted Combat Programmer 39277 | -3/Research | Research terminal network offline 39448 | -3/Research | Discovered new exit (range 15) 39473 | -3/Research | Identified exit to Quarantine 39478 | -3/Research | Entered Quarantine 39478 | -3/Quarantine | Accompanied by 1 ally 39567 | -3/Quarantine | Identified Transdimensional Reconstructor 39567 | -3/Quarantine | Identified Core Reset Matrix 39571 | -3/Quarantine | Discovered exit to Research (range 22) 39583 | -3/Quarantine | Identified Integrated Reactor 39583 | -3/Quarantine | Installed Integrated Reactor, increased core energy generation (+2%) 39969 | -3/Quarantine | Incoming investigation squad redirected 40091 | -3/Quarantine | Found Hvy. Reactive Plating 40593 | -3/Quarantine | Found Subatomic Replicator 40599 | -3/Quarantine | Repaired Centrium Heavy Treads? 40641 | -3/Quarantine | Intercept squad dispatched 40647 | -3/Quarantine | Spotted Tracker 40650 | -3/Quarantine | Destroyed Tracker 40673 | -3/Quarantine | Spotted Combat Programmer 40709 | -3/Quarantine | Destroyed Combat Programmer 40769 | -3/Quarantine | Intercept squad dispatched 40777 | -3/Quarantine | Spotted Tracker 40778 | -3/Quarantine | Spotted Tracker 40779 | -3/Quarantine | Spotted Combat Programmer 40798 | -3/Quarantine | Incoming investigation squad redirected 40801 | -3/Quarantine | System corruption reached 10% 40817 | -3/Quarantine | Destroyed Tracker 40817 | -3/Quarantine | Spotted Combat Programmer 40838 | -3/Quarantine | Destroyed Combat Programmer 40888 | -3/Quarantine | Destroyed Combat Programmer 40900 | -3/Quarantine | Met incapacitated Sigix Warrior 40900 | -3/Quarantine | Lockdown squad dispatched 40912 | -3/Quarantine | Used Core Reset Matrix 40916 | -3/Quarantine | Sensed 11 artifacts in vicinity 40923 | -3/Quarantine | Acquired the access code to the Sigix quarantine chamber 40927 | -3/Quarantine | Unlocked Sigix quarantine chamber 40972 | -3/Quarantine | Spotted Lightning 40976 | -3/Quarantine | Spotted Lightning 40976 | -3/Quarantine | Spotted Lightning 41054 | -3/Quarantine | Core integrity fell below 50% 41072 | -3/Quarantine | Emitted hypermatrix ping 41077 | -3/Quarantine | Assembled emerged from beneath the floor 41095 | -3/Quarantine | Lost 10 parts (2p3n4u1w) 41134 | -3/Quarantine | Found Phase Redirector 41160 | -3/Quarantine | Core integrity fell below 20% 41212 | -3/Quarantine | Destroyed by P-80 Master with Gamma Rifle Last Messages --------------- 41180_ Prototype Energy Gun crushed. 41180_ EMDS Slug penetrates P-80 Master. 41180_ P-80 Master suffers critical hit. 41180_ Penetrated by EMDS Slug. 41180_ Particle Reactor destroyed. 41184_ The unstable cave ceiling collapses. 41188_ Penetrated by EMDS Slug. 41189_ Critical hit. 41189_ Biometal Heavy Treads destroyed. 41190_ System corrupted: Heat flow error (+274). 41193_ Penetrated by EMDS Slug. 41194_ P-80 Master resets I-47 Archangel, system corruption cleaned. 41198_ Penetrated by EMDS Slug. 41206_ RCP>XSNFST LJTQF>LHL OIXD5N L0<& 41206_ Penetrated by EMDS Slug. 41209_ C-30 ARC bursts open, deploying its payload. 41209_ H-77 Assassin unfolds itself. 41210_ Slug penetrates Wall. 41210_ Penetrated by Slug. 41211_ Penetrated by EMDS Slug. Map ----- +----------------------------------------------------+ | ???????????????? ????????????????????? | | ???????????????? ????????????????????? | | ???????????????? ????????????????????? | | ????????????????# #????????????????????? | | ????????#####???# #????????????????????? | | ????????# #???# #?#######+###????????? | | ????????# #???#%#?# #????????? | | ???????## ##??#%#?# #????????? | | ???????# ]=####*### """ #????????? | | ???????# !%]%!%%=[ " " "" #??????!?? | | ???????# =!]%=%==%% "" #????????? | | ???????# [[=]%=%*=! #????????? | | ???????# [%=#####= # #????????? | | ???????## =### % # #????????? | | ????????# ### # ## #######????????? | | ????????# ## # #?????????????? | | ????????+ ## # ## #?????????????? | | ????????# ## # # #?????????????? | | ????????# ## ##?????????????? | | ????????# ## # ### #??????????????? | | ????????# %### # #??????????????? | | ????????# ### = # ####??????????????? | | ????????# !#### p*## #??????????????? | | ????????#=!=## ![= ###??????????????? | | ????????#!%=## "" #????????????????? | | ????????#=[%## @ "" #????????????????? | | ???????## *## """ #????????????????? | | ???????# %!*# " "" #????????????????? | | ???????# T %=#h """ #????????????????? | | ???????# "*[hh h #????????????????? | | ???????# #i #????????????????? | | ???????# /=*#=|= #????????????????? | | ???????##%%%####+######????????????????? | | ????????#=!%#[!!=!! ??????????????????? | | ????????#*!!#%"!G"" ?????????????????? | | ????????#[[["!%[!"! **#????????????????? | | ????????#!%=#!%!!|! **#????????????????? | | ????????# =!###########????????????????? | | ????????# =##?????????????????????????? | | ????????# =T#?????????????????????????? | | ?????#### ####???????????????????????? | | ?????#""T T""#???????????????????????? | | ?????#"" ""#???????????????????????? | | ?????#""" """#???????????????????????? | | ?????#"" ""#???????????????????????? | | ?????#"" & ""#???????????????????????? | | ?????#"" ""#???????????????????????? | | ?????#""" """#???????????????????????? | | ?????#"""""""""#???????????????????????? | | ?????#"""""""""#???????????????????????? | +----------------------------------------------------+ Best States ------------- Heat Dissipation 70 Coolant Potential 100 Energy Generation 51 Energy Capacity 950 Matter Stores 300 Matter Capacity 500 Sight Range 23 Robot Scan Range 30 Terrain Scan Range 20 Terrain Scan Density 10 Power Amplification 30 Armor Coverage 2400 Resistance: KI 60 Resistance: TH 20 Resistance: EX 20 Resistance: EM 100 Resistance: I 20 Resistance: S 20 Resistance: P 20 Phase Shifting 20 Evasion (%) 60 Core Analysis 8 Armor Integrity Analysis 66 Recoil Reduction 4 Energy Filtering 50 Offensive Hacking 41 Defensive Hacking 14 Item Schematics ----------------- None Robot Schematics ------------------ None Fabricated ------------ Adv. System Shield | x1 | -5/Factory | Preloaded Adv. EMP Blaster | x1 | -5/Factory Exp. Sensor Array | x1 | -4/Factory Adv. EMP Blaster | x1 | -4/Factory Adv. EMP Blaster | x1 | -4/Factory Adv. EMP Blaster | x1 | -4/Factory P-70 Sage | x2 | -4/Armory P-70 Sage | x2 | -4/Armory P-70 Sage | x2 | -3/Research Alien Tech Used ----------------- Core Regenerator Integrated Reactor Core Reset Matrix Phase Redirector Achievements -------------- Revolutionary Research Woof! Challenges ------------ None Game ------ Seed RocketGaussMace Manual? 0 Play Time 06:11:52 Cumulative 184.9 hours Start 2019.11.09 @ 02:48:27 End 2019.11.10 @ 01:22:15 Sessions 3 Manual Loads 0 Difficulty Adventurer Special Mode None Game No. 172 Rogue 160 Adventurer 6 Explorer 0 Win Type - Total 3 Types 2/0/0/1/0/0/0 Lore% 64 Gallery% 81 Achievement% 64 Wizard Run 0 Options --------- ASCII 0 Keyboard 1 Movement Numpad Keybinds 0 Fullscreen 2 Font 18/SmallcapsGlow Map View 76x50 Tactical HUD 1 Map Filters NONE Filters NONE Steam 1 RUN: 2ffb979b-f7c0-4b46-bf18-7545c5cf756d